Workbook

Sheet Creditos
C4: IPDC - Instituto de Pesquisa e Desenvolvimento do Comércio
C11: Responsável técnico: Francisco Estevam Martins de Oliveira, Estatístico
C12: Coordenação de campo: Roberto Guerra, Sociólogo
F14: E-mail: stvm@uol.com.br

Sheet Descricao (hidden)
F4: Menu de Perguntas
F8: Ordem | G8: Descrição
D10: 1 | E10: Dimensôes | F10: =IF(G10<>"",D10,"") -> 1 | G10: 1. Perfil de endvidamento do consumidor | T10: =CONCATENATE("Ilustração ",F10," - ",G10) -> Ilustração 1 - 1. Perfil de endvidamento do consumidor
D11: =D10+1 -> 2 | F11: 2 | G11: 2. Confiança e intençãode compra do consumidor | T11: Ilustração 2 - 2. Confiança e intençãode compra do consumidor
D12: =D11+1 -> 3 | F12: 3 | G12: 3. Índice de medo de desemprego | T12: Ilustração 3 - 3. Índice de medo de desemprego
D13: 4 | F13: 4 | G13: 4. Emprego do comércio varejista ampliado | T13: Ilustração 4 - 4. Emprego do comércio varejista ampliado
D14: 5 | F14: 5 | G14: 5. Emprego do setor de serviços | T14: Ilustração 5 - 5. Emprego do setor de serviços
D15: 6 | F15: 6 | G15: 6. Índice de preços do comércio varejista | T15: Ilustração 6 - 6. Índice de preços do comércio varejista
D16: 7 | F16: 7 | G16: 7. Índice de preços do setor de serviços | T16: Ilustração 7 - 7. Índice de preços do setor de serviços
D17: 8 | F17: 8 | T17: Ilustração 8 -
D18: 9 | F18: 1 | T18: Ilustração 1 -
D19: 10 | F19: 2 | T19: Ilustração 2 -
D20: 11 | F20: 3 | T20: Ilustração 3 -
D21: 12 | F21: 1 | T21: Ilustração 1 -
D22: 13 | F22: 2 | T22: Ilustração 2 -
D23: 14 | F23: 1 | T23: Ilustração 1 -
D24: 15 | F24: 2 | T24: Ilustração 2 -
D25: 16 | T25: Ilustração -
D26: 1 | E26: Componentes | F26: 1 | G26: Este é um lugar fisicamente seguro, possuindo equipamentos de segurança adequados | T26: Ilustração 1 - Este é um lugar fisicamente seguro, possuindo equipamentos de segurança adequados
D27: 2 | F27: 2 | G27: Nossas instalações contribuem para um bom e seguro ambiente | T27: Ilustração 2 - Nossas instalações contribuem para um bom e seguro ambiente
D28: 3 | F28: 3 | G28: Eu recebo os equipamentos e recursos necessários e adequados para realizar minhas atividades com segurança | T28: Ilustração 3 - Eu recebo os equipamentos e recursos necessários e adequados para realizar minhas atividades com segurança
D29: 4 | F29: 4 | G29: O XYZ é um lugar psicológica e emocionalmente saudável | T29: Ilustração 4 - O XYZ é um lugar psicológica e emocionalmente saudável
D30: 5 | F30: 5 | G30: As oportunidades de crescimento são dadas às pessoas que realmente merecem | T30: Ilustração 5 - As oportunidades de crescimento são dadas às pessoas que realmente merecem
D31: 6 | F31: 6 | G31: As pessoas aqui têm vontade de vir ao XYZ para desempenhar suas atividades | T31: Ilustração 6 - As pessoas aqui têm vontade de vir ao XYZ para desempenhar suas atividades
D32: 7 | F32: 7 | G32: As pessoas no XYZ são remuneradas adequadamente pelo que fazem | T32: Ilustração 7 - As pessoas no XYZ são remuneradas adequadamente pelo que fazem
D33: 8 | F33: 8 | G33: Acredito que o valor recebido em virtude de minha atuação se mostra justo | T33: Ilustração 8 - Acredito que o valor recebido em virtude de minha atuação se mostra justo
D34: 9 | F34: 9 | G34: No XYZ temos ações especiais, como programas de saúde laboral e incentivo à qualificação técnica-profissional | T34: Ilustração 9 - No XYZ temos ações especiais, como programas de saúde laboral e incentivo à qualificação técnica-profissional
D35: 10 | F35: 10 | G35: O XYZ oferece oportunidades e formas de desenvolvimento para o meu crescimento técnico-profissional | T35: Ilustração 10 - O XYZ oferece oportunidades e formas de desenvolvimento para o meu crescimento técnico-profissional
D36: 11 | F36: 11 | G36: As pessoas no XYZ estão dispostas a dar mais de si para desempenhar bem suas atividades | T36: Ilustração 11 - As pessoas no XYZ estão dispostas a dar mais de si para desempenhar bem suas atividades
D37: 12 | F37: 12 | G37: No XYZ, as pessoas se importam umas com as outras e se reúnem fora dele | T37: Ilustração 12 - No XYZ, as pessoas se importam umas com as outras e se reúnem fora dele
D38: 13 | F38: 13 | G38: As pessoas são orientadas e preparadas para agir corretamente em situações de emergência | T38: Ilustração 13 - As pessoas são orientadas e preparadas para agir corretamente em situações de emergência
D39: 14 | F39: 14 | G39: Quando as pessoas mudam de equipe ou de área, as pessoas do XYZ fazem com que se sintam rapidamente "em casa" | T39: Ilustração 14 - Quando as pessoas mudam de equipe ou de área, as pessoas do XYZ fazem com que se sintam rapidamente "em casa"
D40: 15 | F40: 15 | G40: Os lideres/gestores deixam claras suas expectativas sobre o desempenho profissional das pessoas | T40: Ilustração 15 - Os lideres/gestores deixam claras suas expectativas sobre o desempenho profissional das pessoas
D41: 16 | F41: 16 | G41: Posso fazer qualquer pergunta razoável aos lideres/gestores e obter respostas diretas | T41: Ilustração 16 - Posso fazer qualquer pergunta razoável aos lideres/gestores e obter respostas diretas
D42: 17 | F42: 17 | G42: É fácil aproximar-se e falar com os lideres/gestores | T42: Ilustração 17 - É fácil aproximar-se e falar com os lideres/gestores
D43: 18 | F43: 18 | G43: Os lideres/gestores incentivam ideias e sugestões levando-as em consideração de forma sincera | T43: Ilustração 18 - Os lideres/gestores incentivam ideias e sugestões levando-as em consideração de forma sincera
D44: 19 | F44: 19 | G44: Os lideres/gestores me mantêm informado sobre assuntos importantes e sobre mudanças do XYZ | T44: Ilustração 19 - Os lideres/gestores me mantêm informado sobre assuntos importantes e sobre mudanças do XYZ
D45: 20 | F45: 20 | G45: Os lideres/gestores têm uma visão clara de para onde estamos indo e como fazemos para chegar lá | T45: Ilustração 20 - Os lideres/gestores têm uma visão clara de para onde estamos indo e como fazemos para chegar lá
D46: 21 | F46: 21 | G46: Os lideres/gestores confiam que as pessoas fazem um bom trabalho sem precisar cobrá-las | T46: Ilustração 21 - Os lideres/gestores confiam que as pessoas fazem um bom trabalho sem precisar cobrá-las
D47: 22 | F47: 22 | G47: Os lideres/gestores envolvem as pessoas em decisões que afetam suas atividades e seu ambiente de convívio | T47: Ilustração 22 - Os lideres/gestores envolvem as pessoas em decisões que afetam suas atividades e seu ambiente de convívio
D48: 23 | F48: 23 | G48: Os lideres/gestores aqui dão autonomia às pessoas | T48: Ilustração 23 - Os lideres/gestores aqui dão autonomia às pessoas
D49: 24 | F49: 24 | G49: Os lideres/gestores agem de acordo com o que falam | T49: Ilustração 24 - Os lideres/gestores agem de acordo com o que falam
D50: 25 | F50: 25 | G50: Acredito que os lideres/gestores só promoveriam reduções de equipes como último recurso | T50: Ilustração 25 - Acredito que os lideres/gestores só promoveriam reduções de equipes como último recurso
D51: 26 | F51: 26 | G51: Os lideres/gestores são honestos e éticos na condução dos negócios | T51: Ilustração 26 - Os lideres/gestores são honestos e éticos na condução dos negócios
D52: 27 | F52: 27 | G52: Este é um lugar amigável para desenvolver minhas atividades profissionais | T52: Ilustração 27 - Este é um lugar amigável para desenvolver minhas atividades profissionais
D53: 28 | F53: 28 | G53: Minhas atividades têm um sentido especial, não é só "mais uma ocupação" | T53: Ilustração 28 - Minhas atividades têm um sentido especial, não é só "mais uma ocupação"
D54: 29 | F54: 29 | G54: Quando vejo o que fazemos no XYZ, sinto-me orgulhoso | T54: Ilustração 29 - Quando vejo o que fazemos no XYZ, sinto-me orgulhoso
D55: 30 | F55: 30 | G55: Eu me sinto bem com a forma como contribuímos para a sociedade com o que fazemos no XYZ | T55: Ilustração 30 - Eu me sinto bem com a forma como contribuímos para a sociedade com o que fazemos no XYZ
D56: 31 | F56: 31 | G56: Tenho orgulho de contar a outras pessoas que faço parte deste XYZ | T56: Ilustração 31 - Tenho orgulho de contar a outras pessoas que faço parte deste XYZ
D57: 32 | F57: 32 | G57: Ainda pretendo fazer parte do XYZ por muito tempo | T57: Ilustração 32 - Ainda pretendo fazer parte do XYZ por muito tempo
D58: 33 | F58: 33 | G58: Sinto que faço diferença como parte do XYZ | T58: Ilustração 33 - Sinto que faço diferença como parte do XYZ
D59: 34 | F59: 34 | G59: As pessoas são encorajadas a equilibrar sua vida profissional e pessoal | T59: Ilustração 34 - As pessoas são encorajadas a equilibrar sua vida profissional e pessoal
D60: 35 | F60: 35 | G60: Quando se entra no XYZ, os meios de ambientação fazem você entir-se bem-vindo | T60: Ilustração 35 - Quando se entra no XYZ, os meios de ambientação fazem você entir-se bem-vindo
D61: 36 | F61: 36 | G61: As pessoas aqui são bem tratadas independente do gênero (masculino/feminino), da cor/raça e da idade | T61: Ilustração 36 - As pessoas aqui são bem tratadas independente do gênero (masculino/feminino), da cor/raça e da idade
D62: 37 | F62: 37 | G62: As pessoas aqui são bem tratadas independente de sua religião, orientação política e/ou opção sexual | T62: Ilustração 37 - As pessoas aqui são bem tratadas independente de sua religião, orientação política e/ou opção sexual
D63: 38 | F63: 38 | G63: O XYZ demonstra preocupação com a comunidade, apoia e adota programas sociais | T63: Ilustração 38 - O XYZ demonstra preocupação com a comunidade, apoia e adota programas sociais
D64: 39 | F64: 39 | G64: As atividades do XYZ não agridem o meio-ambiente | T64: Ilustração 39 - As atividades do XYZ não agridem o meio-ambiente
D65: 40 | F65: 40 | G65: Espero ser reconhecido pelo meu trabalho nas equipes do XYZ e poder ampliar minhas possibilidades de crescimento profissional e assim obter melhores rendimentos | T65: Ilustração 40 - Espero ser reconhecido pelo meu trabalho nas equipes do XYZ e poder ampliar minhas possibilidades de crescimento profissional e assim obter melhores rendimentos
D66: 41 | F66: 41 | G66: Espero aproveitar as oportunidades de aprender mais e estar pronto para crescer no XYZ | T66: Ilustração 41 - Espero aproveitar as oportunidades de aprender mais e estar pronto para crescer no XYZ
D67: 42 | F67: 42 | G67: Espero alcançar meus objetivos e metas individuais conquistando meu respeito próprio e ampliando minha autoconfiança | T67: Ilustração 42 - Espero alcançar meus objetivos e metas individuais conquistando meu respeito próprio e ampliando minha autoconfiança
D68: 43 | F68: 43 | G68: Espero me destacar e ser percebido pelos meus lideres e colegas como parte importante no grupo | T68: Ilustração 43 - Espero me destacar e ser percebido pelos meus lideres e colegas como parte importante no grupo
D69: 44 | F69: 44 | G69: Espero contribuir para o XYZ crescer e sentir-me seguro como parte dele | T69: Ilustração 44 - Espero contribuir para o XYZ crescer e sentir-me seguro como parte dele
D70: 45 | F70: 45 | G70: Espero tornar-me mais eficiente e estar pronto para superar meus próprios limites recebendo novos desafios | T70: Ilustração 45 - Espero tornar-me mais eficiente e estar pronto para superar meus próprios limites recebendo novos desafios
D71: 46 | F71: 46 | G71: Espero sentir-me parte de um plano maior. Estar informado, contribuir com sugestões de melhoria e participar das decisões | T71: Ilustração 46 - Espero sentir-me parte de um plano maior. Estar informado, contribuir com sugestões de melhoria e participar das decisões
D72: 47 | F72: 47 | G72: Espero ser reconhecido e lembrado pelos meios de comunicação interna do XYZ. Me destacar entre os colegas de equipe | T72: Ilustração 47 - Espero ser reconhecido e lembrado pelos meios de comunicação interna do XYZ. Me destacar entre os colegas de equipe
D73: 48 | F73: 48 | G73: Espero estar preparado para ter mais autonomia de ação nas rotinas de minhas atribuições | T73: Ilustração 48 - Espero estar preparado para ter mais autonomia de ação nas rotinas de minhas atribuições
D74: 49 | F74: =IF(G74<>"",D74,"") -> 49 | G74: Espero me engajar em grupos especiais voluntários e estar lutando por um mundo melhor | T74: =CONCATENATE("Ilustração ",F74," - ",G74) -> Ilustração 49 - Espero me engajar em grupos especiais voluntários e estar lutando por um mundo melhor
D75: 50 | T75: Ilustração -
D76: =D75+1 -> 51 | T76: Ilustração -
D77: 52 | T77: Ilustração -
D78: 53 | T78: Ilustração -
D79: 54 | T79: Ilustração -
D80: 55 | T80: Ilustração -
D81: 56 | T81: Ilustração -
D82: 57 | T82: Ilustração -
D83: 58 | T83: Ilustração -
D84: 59 | T84: Ilustração -
D85: 60 | T85: Ilustração -
D86: 61 | T86: Ilustração -
D87: 62 | T87: Ilustração -
D88: 63 | T88: Ilustração -
D89: 64 | T89: Ilustração -
D90: 65 | T90: Ilustração -
D91: 66 | T91: Ilustração -
D92: 67 | T92: Ilustração -
D93: 68 | T93: Ilustração -
D94: 69 | T94: Ilustração -
D95: 70 | T95: Ilustração -
D96: 71 | T96: Ilustração -
D97: 72 | T97: Ilustração -
D98: 73 | T98: Ilustração -
D99: 74 | T99: Ilustração -
D100: 75 | T100: Ilustração -
D101: 76 | T101: Ilustração -
D102: 77 | T102: Ilustração -
D103: 78 | T103: Ilustração -
D104: 79 | T104: Ilustração -
D105: 80 | T105: Ilustração -
D106: 81 | T106: Ilustração -
D107: 82 | T107: Ilustração -
D108: 83 | T108: Ilustração -
D109: 84 | T109: Ilustração -
D110: 85 | T110: Ilustração -
D111: 86 | T111: Ilustração -
D112: 87 | T112: Ilustração -
D113: 88 | T113: Ilustração -
D114: 89 | T114: Ilustração -
D115: 90 | T115: Ilustração -
D116: 91 | T116: Ilustração -
D117: 92 | T117: Ilustração -
D118: 93 | T118: Ilustração -
D119: 94 | T119: Ilustração -
D120: 95 | T120: Ilustração -
D121: 96 | T121: Ilustração -
D122: 97 | T122: Ilustração -
D123: 98 | T123: Ilustração -
D124: 99 | T124: Ilustração -
D125: 100 | T125: Ilustração -
D126: 101 | T126: Ilustração -
D127: 102 | T127: Ilustração -
D128: 103 | T128: Ilustração -
D129: 104 | T129: Ilustração -
D130: 105 | T130: Ilustração -
D131: 106 | T131: Ilustração -
D132: 107 | T132: Ilustração -
D133: 108 | T133: Ilustração -
D134: 109 | T134: Ilustração -
D135: 110 | T135: Ilustração -
D136: 111 | T136: Ilustração -
D137: 112 | T137: Ilustração -
D138: 113 | F138: =IF(G138<>"",D138,"") ->  | T138: =CONCATENATE("Ilustração ",F138," - ",G138) -> Ilustração -
D139: 114 | T139: Ilustração -
D140: =D139+1 -> 115 | T140: Ilustração -
D141: 116 | T141: Ilustração -
D142: 117 | T142: Ilustração -
D143: 118 | T143: Ilustração -
D144: 119 | T144: Ilustração -
D145: 120 | T145: Ilustração -
D146: 121 | T146: Ilustração -
D147: 122 | T147: Ilustração -
D148: 123 | T148: Ilustração -
D149: 124 | T149: Ilustração -
D150: 125 | T150: Ilustração -
D151: 126 | T151: Ilustração -
D152: 127 | T152: Ilustração -
D153: 128 | T153: Ilustração -
D154: 129 | T154: Ilustração -
D155: 130 | T155: Ilustração -
D156: 131 | T156: Ilustração -
D157: 132 | T157: Ilustração -
D158: 133 | T158: Ilustração -
D159: 134 | T159: Ilustração -
D160: 135 | T160: Ilustração -
D161: 136 | T161: Ilustração -
D162: 137 | T162: Ilustração -
D163: 138 | T163: Ilustração -
D164: 139 | T164: Ilustração -
D165: 140 | T165: Ilustração -
D166: 141 | T166: Ilustração -
D167: 142 | T167: Ilustração -
D168: 143 | T168: Ilustração -
D169: 144 | T169: Ilustração -
D170: 145 | T170: Ilustração -
D171: 146 | T171: Ilustração -
D172: 147 | T172: Ilustração -
D173: 148 | T173: Ilustração -
D174: 149 | T174: Ilustração -
D175: 150 | T175: Ilustração -
D176: 151 | T176: Ilustração -
D177: 152 | T177: Ilustração -
D178: 153 | T178: Ilustração -
D179: 154 | T179: Ilustração -
D180: 155 | T180: Ilustração -
D181: 156 | T181: Ilustração -
D182: 157 | T182: Ilustração -
D183: 158 | T183: Ilustração -
D184: 159 | T184: Ilustração -
D185: 160 | T185: Ilustração -
D186: 161 | T186: Ilustração -
D187: 162 | T187: Ilustração -
D188: 163 | T188: Ilustração -
D189: 164 | T189: Ilustração -
D190: 165 | T190: Ilustração -
D191: 166 | T191: Ilustração -
D192: 167 | T192: Ilustração -
D193: 168 | T193: Ilustração -
D194: 169 | T194: Ilustração -
D195: 170 | T195: Ilustração -
D196: 171 | T196: Ilustração -
D197: 172 | T197: Ilustração -
D198: 173 | T198: Ilustração -
D199: 174 | T199: Ilustração -
D200: 175 | T200: Ilustração -
D201: 176 | T201: Ilustração -
D202: 177 | F202: =IF(G202<>"",D202,"") ->  | T202: =CONCATENATE("Ilustração ",F202," - ",G202) -> Ilustração -
D203: 178 | T203: Ilustração -
D204: =D203+1 -> 179 | T204: Ilustração -
D205: 180 | T205: Ilustração -
D206: 181 | T206: Ilustração -
D207: 182 | T207: Ilustração -
... 1651 more rows

Sheet Parâmetros (hidden)
F6: Parâmetros
F8: Federação do Comércio do Estado do Ceará
F9: Panorama de Indicadores do Comércio de Bens, Serviços e Turismo
F10: Fortaleza - Ceará - Brasil
F11: =CONCATENATE("Última atualização: ",TEXT(TODAY(),"dd-mmm-aaaa")) -> Última atualização: 24-jan-2020

Sheet Menu (hidden)
G4: =Parâmetros!F8 -> Federação do Comércio do Estado do Ceará
G5: =Parâmetros!F9 -> Panorama de Indicadores do Comércio de Bens, Serviços e Turismo
G6: =Parâmetros!F10 -> Fortaleza - Ceará - Brasil
G9: A. Perfil de endvidamento do consumidor
G10: B. Confiança e intençãode compra do consumidor
G11: C. Índice de medo de desemprego
G12: D. Emprego do comércio varejista ampliado
G13: E. Emprego do setor de serviços
G14: F. Índice de preços do comércio varejista
G15: G. Índice de preços do setor de serviços
M16: Créditos
F24: =IF(Descricao!T307<>"",Descricao!T307,Descricao!T307) -> Ilustração -
F25: =IF(Descricao!T308<>"",Descricao!T308,Descricao!T308) -> Ilustração -
F26: =IF(Descricao!T309<>"",Descricao!T309,Descricao!T309) -> Ilustração - | P26: =Parâmetros!$F$11 -> Última atualização: 24-jan-2020
F27: =IF(Descricao!T310<>"",Descricao!T310,Descricao!T310) -> Ilustração -
F28: =IF(Descricao!T311<>"",Descricao!T311,Descricao!T311) -> Ilustração -
F29: =IF(Descricao!T312<>"",Descricao!T312,Descricao!T312) -> Ilustração -
F30: =IF(Descricao!T313<>"",Descricao!T313,Descricao!T313) -> Ilustração -
F31: =IF(Descricao!T314<>"",Descricao!T314,Descricao!T314) -> Ilustração -
F32: =IF(Descricao!T315<>"",Descricao!T315,Descricao!T315) -> Ilustração -
F33: =IF(Descricao!T316<>"",Descricao!T316,Descricao!T316) -> Ilustração -
F34: =IF(Descricao!T317<>"",Descricao!T317,Descricao!T317) -> Ilustração -
F35: =IF(Descricao!T318<>"",Descricao!T318,Descricao!T318) -> Ilustração -
F36: =IF(Descricao!T319<>"",Descricao!T319,Descricao!T319) -> Ilustração -
F37: =IF(Descricao!T320<>"",Descricao!T320,Descricao!T320) -> Ilustração -
F38: =IF(Descricao!T321<>"",Descricao!T321,Descricao!T321) -> Ilustração -
F39: =IF(Descricao!T322<>"",Descricao!T322,Descricao!T322) -> Ilustração -
F40: =IF(Descricao!T323<>"",Descricao!T323,Descricao!T323) -> Ilustração -
F41: =IF(Descricao!T324<>"",Descricao!T324,Descricao!T324) -> Ilustração -
F42: =IF(Descricao!T325<>"",Descricao!T325,Descricao!T325) -> Ilustração -
F43: =IF(Descricao!T326<>"",Descricao!T326,Descricao!T326) -> Ilustração -
F44: =IF(Descricao!T327<>"",Descricao!T327,Descricao!T327) -> Ilustração -
F45: =IF(Descricao!T328<>"",Descricao!T328,Descricao!T328) -> Ilustração -
F46: =IF(Descricao!T329<>"",Descricao!T329,Descricao!T329) -> Ilustração -
F47: =IF(Descricao!T330<>"",Descricao!T330,Descricao!T330) -> Ilustração -
F48: =IF(Descricao!T331<>"",Descricao!T331,Descricao!T331) -> Ilustração -
F49: =IF(Descricao!T332<>"",Descricao!T332,Descricao!T332) -> Ilustração -
F50: =IF(Descricao!T333<>"",Descricao!T333,Descricao!T333) -> Ilustração -
F51: =IF(Descricao!T334<>"",Descricao!T334,Descricao!T334) -> Ilustração -
F52: =IF(Descricao!T335<>"",Descricao!T335,Descricao!T335) -> Ilustração -
F53: =IF(Descricao!T336<>"",Descricao!T336,Descricao!T336) -> Ilustração -
F54: =IF(Descricao!T337<>"",Descricao!T337,Descricao!T337) -> Ilustração -
F55: =IF(Descricao!T338<>"",Descricao!T338,Descricao!T338) -> Ilustração -
F56: =IF(Descricao!T339<>"",Descricao!T339,Descricao!T339) -> Ilustração -
F57: =IF(Descricao!T340<>"",Descricao!T340,Descricao!T340) -> Ilustração -
F58: =IF(Descricao!T341<>"",Descricao!T341,Descricao!T341) -> Ilustração -
F59: =IF(Descricao!T342<>"",Descricao!T342,Descricao!T342) -> Ilustração -
F60: =IF(Descricao!T343<>"",Descricao!T343,Descricao!T343) -> Ilustração -
F61: =IF(Descricao!T344<>"",Descricao!T344,Descricao!T344) -> Ilustração -
F62: =IF(Descricao!T345<>"",Descricao!T345,Descricao!T345) -> Ilustração -
F63: =IF(Descricao!T346<>"",Descricao!T346,Descricao!T346) -> Ilustração -
F64: =IF(Descricao!T347<>"",Descricao!T347,Descricao!T347) -> Ilustração -
F65: =IF(Descricao!T348<>"",Descricao!T348,Descricao!T348) -> Ilustração -
F66: =IF(Descricao!T349<>"",Descricao!T349,Descricao!T349) -> Ilustração -
F67: =IF(Descricao!T350<>"",Descricao!T350,Descricao!T350) -> Ilustração -
F68: =IF(Descricao!T351<>"",Descricao!T351,Descricao!T351) -> Ilustração -
F69: =IF(Descricao!T352<>"",Descricao!T352,Descricao!T352) -> Ilustração -
F70: =IF(Descricao!T353<>"",Descricao!T353,Descricao!T353) -> Ilustração -
F71: =IF(Descricao!T354<>"",Descricao!T354,Descricao!T354) -> Ilustração -
F72: =IF(Descricao!T355<>"",Descricao!T355,Descricao!T355) -> Ilustração -
F73: =IF(Descricao!T356<>"",Descricao!T356,Descricao!T356) -> Ilustração -
F74: =IF(Descricao!T357<>"",Descricao!T357,Descricao!T357) -> Ilustração -
F75: =IF(Descricao!T358<>"",Descricao!T358,Descricao!T358) -> Ilustração -
F76: =IF(Descricao!T359<>"",Descricao!T359,Descricao!T359) -> Ilustração -
F77: =IF(Descricao!T360<>"",Descricao!T360,Descricao!T360) -> Ilustração -
F78: =IF(Descricao!T361<>"",Descricao!T361,Descricao!T361) -> Ilustração -
F79: =IF(Descricao!T362<>"",Descricao!T362,Descricao!T362) -> Ilustração -
F80: =IF(Descricao!T363<>"",Descricao!T363,Descricao!T363) -> Ilustração -
F81: =IF(Descricao!T364<>"",Descricao!T364,Descricao!T364) -> Ilustração -
F82: =IF(Descricao!T365<>"",Descricao!T365,Descricao!T365) -> Ilustração -
F83: =IF(Descricao!T366<>"",Descricao!T366,Descricao!T366) -> Ilustração -
F84: =IF(Descricao!T367<>"",Descricao!T367,Descricao!T367) -> Ilustração -
F85: =IF(Descricao!T368<>"",Descricao!T368,Descricao!T368) -> Ilustração -
F86: =IF(Descricao!T369<>"",Descricao!T369,Descricao!T369) -> Ilustração -
F87: =IF(Descricao!T370<>"",Descricao!T370,Descricao!T370) -> Ilustração -
F88: =IF(Descricao!T371<>"",Descricao!T371,Descricao!T371) -> Ilustração -
F89: =IF(Descricao!T372<>"",Descricao!T372,Descricao!T372) -> Ilustração -
F90: =IF(Descricao!T373<>"",Descricao!T373,Descricao!T373) -> Ilustração -
F91: =IF(Descricao!T374<>"",Descricao!T374,Descricao!T374) -> Ilustração -
F92: =IF(Descricao!T375<>"",Descricao!T375,Descricao!T375) -> Ilustração -
F93: =IF(Descricao!T376<>"",Descricao!T376,Descricao!T376) -> Ilustração -
F94: =IF(Descricao!T377<>"",Descricao!T377,Descricao!T377) -> Ilustração -
F95: =IF(Descricao!T378<>"",Descricao!T378,Descricao!T378) -> Ilustração -
F96: =IF(Descricao!T379<>"",Descricao!T379,Descricao!T379) -> Ilustração -
F97: =IF(Descricao!T380<>"",Descricao!T380,Descricao!T380) -> Ilustração -
F98: =IF(Descricao!T381<>"",Descricao!T381,Descricao!T381) -> Ilustração -
F99: =IF(Descricao!T382<>"",Descricao!T382,Descricao!T382) -> Ilustração -
F100: =IF(Descricao!T383<>"",Descricao!T383,Descricao!T383) -> Ilustração -
F101: =IF(Descricao!T384<>"",Descricao!T384,Descricao!T384) -> Ilustração -
F102: =IF(Descricao!T385<>"",Descricao!T385,Descricao!T385) -> Ilustração -
F103: =IF(Descricao!T386<>"",Descricao!T386,Descricao!T386) -> Ilustração -
F104: =IF(Descricao!T387<>"",Descricao!T387,Descricao!T387) -> Ilustração -
F105: =IF(Descricao!T388<>"",Descricao!T388,Descricao!T388) -> Ilustração -
F106: =IF(Descricao!T389<>"",Descricao!T389,Descricao!T389) -> Ilustração -
F107: =IF(Descricao!T390<>"",Descricao!T390,Descricao!T390) -> Ilustração -
F108: =IF(Descricao!T391<>"",Descricao!T391,Descricao!T391) -> Ilustração -
F109: =IF(Descricao!T392<>"",Descricao!T392,Descricao!T392) -> Ilustração -
F110: =IF(Descricao!T393<>"",Descricao!T393,Descricao!T393) -> Ilustração -
F111: =IF(Descricao!T394<>"",Descricao!T394,Descricao!T394) -> Ilustração -
F112: =IF(Descricao!T395<>"",Descricao!T395,Descricao!T395) -> Ilustração -
F113: =IF(Descricao!T396<>"",Descricao!T396,Descricao!T396) -> Ilustração -
F114: =IF(Descricao!T397<>"",Descricao!T397,Descricao!T397) -> Ilustração -
F115: =IF(Descricao!T398<>"",Descricao!T398,Descricao!T398) -> Ilustração -
F116: =IF(Descricao!T399<>"",Descricao!T399,Descricao!T399) -> Ilustração -
F117: =IF(Descricao!T400<>"",Descricao!T400,Descricao!T400) -> Ilustração -
F118: =IF(Descricao!T401<>"",Descricao!T401,Descricao!T401) -> Ilustração -
F119: =IF(Descricao!T402<>"",Descricao!T402,Descricao!T402) -> Ilustração -
F120: =IF(Descricao!T403<>"",Descricao!T403,Descricao!T403) -> Ilustração -
F121: =IF(Descricao!T404<>"",Descricao!T404,Descricao!T404) -> Ilustração -
F122: =IF(Descricao!T405<>"",Descricao!T405,Descricao!T405) -> Ilustração -
F123: =IF(Descricao!T406<>"",Descricao!T406,Descricao!T406) -> Ilustração -
F124: =IF(Descricao!T407<>"",Descricao!T407,Descricao!T407) -> Ilustração -
F125: =IF(Descricao!T408<>"",Descricao!T408,Descricao!T408) -> Ilustração -
F126: =IF(Descricao!T409<>"",Descricao!T409,Descricao!T409) -> Ilustração -
F127: =IF(Descricao!T410<>"",Descricao!T410,Descricao!T410) -> Ilustração -
F128: =IF(Descricao!T411<>"",Descricao!T411,Descricao!T411) -> Ilustração -
F129: =IF(Descricao!T412<>"",Descricao!T412,Descricao!T412) -> Ilustração -
F130: =IF(Descricao!T413<>"",Descricao!T413,Descricao!T413) -> Ilustração -
F131: =IF(Descricao!T414<>"",Descricao!T414,Descricao!T414) -> Ilustração -
F132: =IF(Descricao!T415<>"",Descricao!T415,Descricao!T415) -> Ilustração -
F133: =IF(Descricao!T416<>"",Descricao!T416,Descricao!T416) -> Ilustração -
F134: =IF(Descricao!T417<>"",Descricao!T417,Descricao!T417) -> Ilustração -
F135: =IF(Descricao!T418<>"",Descricao!T418,Descricao!T418) -> Ilustração -
F136: =IF(Descricao!T419<>"",Descricao!T419,Descricao!T419) -> Ilustração -
F137: =IF(Descricao!T420<>"",Descricao!T420,Descricao!T420) -> Ilustração -
F138: =IF(Descricao!T421<>"",Descricao!T421,Descricao!T421) -> Ilustração -
F139: =IF(Descricao!T422<>"",Descricao!T422,Descricao!T422) -> Ilustração -
F140: =IF(Descricao!T423<>"",Descricao!T423,Descricao!T423) -> Ilustração -
F141: =IF(Descricao!T424<>"",Descricao!T424,Descricao!T424) -> Ilustração -
F142: =IF(Descricao!T425<>"",Descricao!T425,Descricao!T425) -> Ilustração -
F143: =IF(Descricao!T426<>"",Descricao!T426,Descricao!T426) -> Ilustração -
F144: =IF(Descricao!T427<>"",Descricao!T427,Descricao!T427) -> Ilustração -
F145: =IF(Descricao!T428<>"",Descricao!T428,Descricao!T428) -> Ilustração -
F146: =IF(Descricao!T429<>"",Descricao!T429,Descricao!T429) -> Ilustração -
F147: =IF(Descricao!T430<>"",Descricao!T430,Descricao!T430) -> Ilustração -
F148: =IF(Descricao!T431<>"",Descricao!T431,Descricao!T431) -> Ilustração -
F149: =IF(Descricao!T432<>"",Descricao!T432,Descricao!T432) -> Ilustração -
F150: =IF(Descricao!T433<>"",Descricao!T433,Descricao!T433) -> Ilustração -
F151: =IF(Descricao!T434<>"",Descricao!T434,Descricao!T434) -> Ilustração -
F152: =IF(Descricao!T435<>"",Descricao!T435,Descricao!T435) -> Ilustração -
F153: =IF(Descricao!T436<>"",Descricao!T436,Descricao!T436) -> Ilustração -
F154: =IF(Descricao!T437<>"",Descricao!T437,Descricao!T437) -> Ilustração -
F155: =IF(Descricao!T438<>"",Descricao!T438,Descricao!T438) -> Ilustração -
F156: =IF(Descricao!T439<>"",Descricao!T439,Descricao!T439) -> Ilustração -
F157: =IF(Descricao!T440<>"",Descricao!T440,Descricao!T440) -> Ilustração -
F158: =IF(Descricao!T441<>"",Descricao!T441,Descricao!T441) -> Ilustração -
F159: =IF(Descricao!T442<>"",Descricao!T442,Descricao!T442) -> Ilustração -
F160: =IF(Descricao!T443<>"",Descricao!T443,Descricao!T443) -> Ilustração -
F161: =IF(Descricao!T444<>"",Descricao!T444,Descricao!T444) -> Ilustração -
F162: =IF(Descricao!T445<>"",Descricao!T445,Descricao!T445) -> Ilustração -
F163: =IF(Descricao!T446<>"",Descricao!T446,Descricao!T446) -> Ilustração -
F164: =IF(Descricao!T447<>"",Descricao!T447,Descricao!T447) -> Ilustração -
F165: =IF(Descricao!T448<>"",Descricao!T448,Descricao!T448) -> Ilustração -
F166: =IF(Descricao!T449<>"",Descricao!T449,Descricao!T449) -> Ilustração -
F167: =IF(Descricao!T450<>"",Descricao!T450,Descricao!T450) -> Ilustração -
F168: =IF(Descricao!T451<>"",Descricao!T451,Descricao!T451) -> Ilustração -
F169: =IF(Descricao!T452<>"",Descricao!T452,Descricao!T452) -> Ilustração -
F170: =IF(Descricao!T453<>"",Descricao!T453,Descricao!T453) -> Ilustração -
F171: =IF(Descricao!T454<>"",Descricao!T454,Descricao!T454) -> Ilustração -
F172: =IF(Descricao!T455<>"",Descricao!T455,Descricao!T455) -> Ilustração -
F173: =IF(Descricao!T456<>"",Descricao!T456,Descricao!T456) -> Ilustração -
F174: =IF(Descricao!T457<>"",Descricao!T457,Descricao!T457) -> Ilustração -
F175: =IF(Descricao!T458<>"",Descricao!T458,Descricao!T458) -> Ilustração -
F176: =IF(Descricao!T459<>"",Descricao!T459,Descricao!T459) -> Ilustração -
F177: =IF(Descricao!T460<>"",Descricao!T460,Descricao!T460) -> Ilustração -
F178: =IF(Descricao!T461<>"",Descricao!T461,Descricao!T461) -> Ilustração -
F179: =IF(Descricao!T462<>"",Descricao!T462,Descricao!T462) -> Ilustração -
F180: =IF(Descricao!T463<>"",Descricao!T463,Descricao!T463) -> Ilustração -
F181: =IF(Descricao!T464<>"",Descricao!T464,Descricao!T464) -> Ilustração -
F182: =IF(Descricao!T465<>"",Descricao!T465,Descricao!T465) -> Ilustração -
F183: =IF(Descricao!T466<>"",Descricao!T466,Descricao!T466) -> Ilustração -
F184: =IF(Descricao!T467<>"",Descricao!T467,Descricao!T467) -> Ilustração -
F185: =IF(Descricao!T468<>"",Descricao!T468,Descricao!T468) -> Ilustração -
F186: =IF(Descricao!T469<>"",Descricao!T469,Descricao!T469) -> Ilustração -
F187: =IF(Descricao!T470<>"",Descricao!T470,Descricao!T470) -> Ilustração -
F188: =IF(Descricao!T471<>"",Descricao!T471,Descricao!T471) -> Ilustração -
F189: =IF(Descricao!T472<>"",Descricao!T472,Descricao!T472) -> Ilustração -
F190: =IF(Descricao!T473<>"",Descricao!T473,Descricao!T473) -> Ilustração -
F191: =IF(Descricao!T474<>"",Descricao!T474,Descricao!T474) -> Ilustração -
F192: =IF(Descricao!T475<>"",Descricao!T475,Descricao!T475) -> Ilustração -
F193: =IF(Descricao!T476<>"",Descricao!T476,Descricao!T476) -> Ilustração -
F194: =IF(Descricao!T477<>"",Descricao!T477,Descricao!T477) -> Ilustração -
F195: =IF(Descricao!T478<>"",Descricao!T478,Descricao!T478) -> Ilustração -
F196: =IF(Descricao!T479<>"",Descricao!T479,Descricao!T479) -> Ilustração -
F197: =IF(Descricao!T480<>"",Descricao!T480,Descricao!T480) -> Ilustração -
F198: =IF(Descricao!T481<>"",Descricao!T481,Descricao!T481) -> Ilustração -
F199: =IF(Descricao!T482<>"",Descricao!T482,Descricao!T482) -> Ilustração -
F200: =IF(Descricao!T483<>"",Descricao!T483,Descricao!T483) -> Ilustração -
F201: =IF(Descricao!T484<>"",Descricao!T484,Descricao!T484) -> Ilustração -
F202: =IF(Descricao!T485<>"",Descricao!T485,Descricao!T485) -> Ilustração -
F203: =IF(Descricao!T486<>"",Descricao!T486,Descricao!T486) -> Ilustração -
F204: =IF(Descricao!T487<>"",Descricao!T487,Descricao!T487) -> Ilustração -
F205: =IF(Descricao!T488<>"",Descricao!T488,Descricao!T488) -> Ilustração -
F206: =IF(Descricao!T489<>"",Descricao!T489,Descricao!T489) -> Ilustração -
F207: =IF(Descricao!T490<>"",Descricao!T490,Descricao!T490) -> Ilustração -
F208: =IF(Descricao!T491<>"",Descricao!T491,Descricao!T491) -> Ilustração -
F209: =IF(Descricao!T492<>"",Descricao!T492,Descricao!T492) -> Ilustração -
F210: =IF(Descricao!T493<>"",Descricao!T493,Descricao!T493) -> Ilustração -
F211: =IF(Descricao!T494<>"",Descricao!T494,Descricao!T494) -> Ilustração -
F212: =IF(Descricao!T495<>"",Descricao!T495,Descricao!T495) -> Ilustração -
... 1855 more rows

Sheet l0
E2: Análise Gráfica
D3: Emprego e Salário do Comércio Varejista Ampliado
D4: Estado do Ceará (CE)
C8: Ilustração 1 - Variação percentual mensal do nível de emprego do comércio varejista frente ao mês anterior
C9: Ilustração 2 - Variação percentual do nível de emprego no comércio varejista acumulada no ano
C10: Ilustração 3 - Variação percentual do nível de emprego no comércio varejista acumulada em 12 meses
C11: Ilustração 4 - Taxa percentual de admitidos do número de empregados no comércio varejista
C12: Ilustração 5 - Taxa percentual de demitidos do número de empregados no comércio varejista
C13: Ilustração 6 -Taxa percentual de rotatividade do número de empregados no comércio varejista
C14: Ilustração 7 - Salário médio no comércio varejista em R$
C15: Ilustração 8 - Sumário executivo - Indicadores de emprego do comércio varejista ampliado | O15: Créditos

Sheet l1
AU2: =$AN$14 -> Ilustração 1.A - Variação percentual mensal do nível de emprego do comércio varejista frente ao mês anterior
D3: =CONCATENATE("Selecionado por subconjunto: ",MID(E6,1,200)) -> Selecionado por subconjunto: > Todos | K3: =CONCATENATE("Selecionado por gupos de subconjuntos: ",MID(L6,4,200)) -> Selecionado por gupos de subconjuntos:
AU4: =$D$3 -> Selecionado por subconjunto: > Todos
D5: h | E5: 1
D6: g | E6: > Todos
K7: h | L7: 1 | AU7: =IF(ISERROR(#REF!),"",#REF!) -> 
D8: Rótulos de Linha | E8: Média de v | K8: y1 | L8: 2019-09-01
D9: 2018-12-01 | E9: 0.8807944531
D10: 2019-01-01 | E10: -1.272636682 | K10: Rótulos de Linha | L10: Média de v | AM10: Número: | AN10: 1
D11: 2019-02-01 | E11: -0.2084728655 | K11: Lojas de Departamentos, Variedades e Duty Free | L11: 1.522491349 | AM11: Título: | AN11: Variação percentual mensal do nível de emprego do comércio varejista frente ao mês anterior
D12: 2019-03-01 | E12: -0.4272696336 | K12: Revendedora de Veículos | L12: 0.8800287356
D13: 2019-04-01 | E13: 0.06882737146 | K13: Materiais de Construção | L13: 0.608755492
D14: 2019-05-01 | E14: -0.1788280831 | K14: Farmácias, Perfumarias e Higiene Pessoal | L14: 0.5997355497 | AM14: =CONCATENATE("Ilustração ",AN10,".A"," - ",AN11) -> Ilustração 1.A - Variação percentual mensal do nível de emprego do comércio varejista frente ao mês anterior | AN14: =IF(AN10=0,"",AM14) -> Ilustração 1.A - Variação percentual mensal do nível de emprego do comércio varejista frente ao mês anterior
D15: 2019-06-01 | E15: -0.159190268 | K15: Óticas e Relojoarias | L15: 0.5477951246 | AM15: =CONCATENATE("Ilustração ",AN10,".B"," - ",AN11) -> Ilustração 1.B - Variação percentual mensal do nível de emprego do comércio varejista frente ao mês anterior | AN15: =IF(AN10=0,"",AM15) -> Ilustração 1.B - Variação percentual mensal do nível de emprego do comércio varejista frente ao mês anterior
D16: 2019-07-01 | E16: -0.04093191499 | K16: Produtos Alimentícios e Bebidas | L16: 0.4612204603
D17: 2019-08-01 | E17: 0.1771268314 | K17: > Todos | L17: 0.358380349
D18: 2019-09-01 | E18: 0.358380349 | K18: Móveis e Decorações | L18: 0.348938645
D19: 2019-10-01 | E19: 0.3542589216 | K19: Vestuário | L19: 0.2957607624
D20: 2019-11-01 | E20: 1.197302412 | K20: Tecidos | L20: 0.1209189843
D21: 2019-12-01 | E21: 0.6347059647 | K21: Autopeças | L21: 0.08197617226
K22: Cine-Foto-Som-Informática | L22: 0.04691898655
K23: Combustíveis, Lubrificantes e GLP | L23: -0.02421307506
K24: Calçados | L24: -0.04809233729
K25: Livrarias e Jornais | L25: -0.3773584906
AU51: =$AN$15 -> Ilustração 1.B - Variação percentual mensal do nível de emprego do comércio varejista frente ao mês anterior
AU55: =IF(ISERROR(#REF!),"",#REF!) -> 
AU271: =IF(D221<>"",D221,"") ->  | AW271: =IF(E221<>"",E221,"") ->  | AY271: =IF(F221<>"",F221,"") ->  | BA271: =IF(H221<>"",H221,"") -> 
AU335: =IF(D285<>"",D285,"") ->  | AW335: =IF(E285<>"",E285,"") ->  | AY335: =IF(F285<>"",F285,"") ->  | BA335: =IF(H285<>"",H285,"") -> 
AU399: =IF(D349<>"",D349,"") ->  | AW399: =IF(E349<>"",E349,"") ->  | AY399: =IF(F349<>"",F349,"") ->  | BA399: =IF(H349<>"",H349,"") -> 
AU463: =IF(D413<>"",D413,"") ->  | AW463: =IF(E413<>"",E413,"") ->  | AY463: =IF(F413<>"",F413,"") ->  | BA463: =IF(H413<>"",H413,"") -> 
AU527: =IF(D477<>"",D477,"") ->  | AW527: =IF(E477<>"",E477,"") ->  | AY527: =IF(F477<>"",F477,"") ->  | BA527: =IF(H477<>"",H477,"") -> 
AU591: =IF(D541<>"",D541,"") ->  | AW591: =IF(E541<>"",E541,"") ->  | AY591: =IF(F541<>"",F541,"") ->  | BA591: =IF(H541<>"",H541,"") -> 
AU655: =IF(D605<>"",D605,"") ->  | AW655: =IF(E605<>"",E605,"") ->  | AY655: =IF(F605<>"",F605,"") ->  | BA655: =IF(H605<>"",H605,"") -> 
AU719: =IF(D669<>"",D669,"") ->  | AW719: =IF(E669<>"",E669,"") ->  | AY719: =IF(F669<>"",F669,"") ->  | BA719: =IF(H669<>"",H669,"") -> 
AU783: =IF(D733<>"",D733,"") ->  | AW783: =IF(E733<>"",E733,"") ->  | AY783: =IF(F733<>"",F733,"") ->  | BA783: =IF(H733<>"",H733,"") -> 
AU847: =IF(D797<>"",D797,"") ->  | AW847: =IF(E797<>"",E797,"") ->  | AY847: =IF(F797<>"",F797,"") ->  | BA847: =IF(H797<>"",H797,"") -> 
AU911: =IF(D861<>"",D861,"") ->  | AW911: =IF(E861<>"",E861,"") ->  | AY911: =IF(F861<>"",F861,"") ->  | BA911: =IF(H861<>"",H861,"") -> 
AU975: =IF(D925<>"",D925,"") ->  | AW975: =IF(E925<>"",E925,"") ->  | AY975: =IF(F925<>"",F925,"") ->  | BA975: =IF(H925<>"",H925,"") -> 
AU1039: =IF(D989<>"",D989,"") ->  | AW1039: =IF(E989<>"",E989,"") ->  | AY1039: =IF(F989<>"",F989,"") ->  | BA1039: =IF(H989<>"",H989,"") -> 
AU1103: =IF(D1053<>"",D1053,"") ->  | AW1103: =IF(E1053<>"",E1053,"") ->  | AY1103: =IF(F1053<>"",F1053,"") ->  | BA1103: =IF(H1053<>"",H1053,"") -> 
AU1167: =IF(D1117<>"",D1117,"") ->  | AW1167: =IF(E1117<>"",E1117,"") ->  | AY1167: =IF(F1117<>"",F1117,"") ->  | BA1167: =IF(H1117<>"",H1117,"") -> 
AU1231: =IF(D1181<>"",D1181,"") ->  | AW1231: =IF(E1181<>"",E1181,"") ->  | AY1231: =IF(F1181<>"",F1181,"") ->  | BA1231: =IF(H1181<>"",H1181,"") -> 
AU1295: =IF(D1245<>"",D1245,"") ->  | AW1295: =IF(E1245<>"",E1245,"") ->  | AY1295: =IF(F1245<>"",F1245,"") ->  | BA1295: =IF(H1245<>"",H1245,"") -> 
AU1359: =IF(D1309<>"",D1309,"") ->  | AW1359: =IF(E1309<>"",E1309,"") ->  | AY1359: =IF(F1309<>"",F1309,"") ->  | BA1359: =IF(H1309<>"",H1309,"") -> 
AU1423: =IF(D1373<>"",D1373,"") ->  | AW1423: =IF(E1373<>"",E1373,"") ->  | AY1423: =IF(F1373<>"",F1373,"") ->  | BA1423: =IF(H1373<>"",H1373,"") -> 
AU1487: =IF(D1437<>"",D1437,"") ->  | AW1487: =IF(E1437<>"",E1437,"") ->  | AY1487: =IF(F1437<>"",F1437,"") ->  | BA1487: =IF(H1437<>"",H1437,"") -> 
AU1551: =IF(D1501<>"",D1501,"") ->  | AW1551: =IF(E1501<>"",E1501,"") ->  | AY1551: =IF(F1501<>"",F1501,"") ->  | BA1551: =IF(H1501<>"",H1501,"") -> 
AU1591: =IF(D1541<>"",D1541,"") -> 
AU1592: =IF(D1542<>"",D1542,"") -> 
AU1593: =IF(D1543<>"",D1543,"") -> 
AU1594: =IF(D1544<>"",D1544,"") -> 

Sheet l2
AU2: =$AN$14 -> Ilustração 2.A - Variação percentual do nível de emprego no comércio varejista acumulada no ano
D3: =CONCATENATE("Selecionado por subconjunto: ",MID(E6,1,200)) -> Selecionado por subconjunto: > Todos
AU4: =$D$3 -> Selecionado por subconjunto: > Todos
D5: h | E5: 2
D6: g | E6: > Todos
K7: h | L7: 2 | AU7: =IF(ISERROR(#REF!),"",#REF!) -> 
D8: Rótulos de Linha | E8: Média de v | K8: y1 | L8: 2019-09-01
D9: 2018-12-01 | E9: 0.8140195383
D10: 2019-01-01 | E10: -1.272636682 | K10: Rótulos de Linha | L10: Média de v | AM10: Número: | AN10: 2
D11: 2019-02-01 | E11: -1.478456445 | K11: Revendedora de Veículos | L11: 2.406563355 | AM11: Título: | AN11: Variação percentual do nível de emprego no comércio varejista acumulada no ano
D12: 2019-03-01 | E12: -1.899409083 | K12: Lojas de Departamentos, Variedades e Duty Free | L12: 2.265597769
D13: 2019-04-01 | E13: -1.831889025 | K13: Produtos Alimentícios e Bebidas | L13: 0.7331446337
D14: 2019-05-01 | E14: -2.007441176 | K14: Combustíveis, Lubrificantes e GLP | L14: 0.4867364322 | AM14: =CONCATENATE("Ilustração ",AN10,".A"," - ",AN11) -> Ilustração 2.A - Variação percentual do nível de emprego no comércio varejista acumulada no ano | AN14: =IF(AN10=0,"",AM14) -> Ilustração 2.A - Variação percentual do nível de emprego no comércio varejista acumulada no ano
D15: 2019-06-01 | E15: -2.163435793 | K15: Autopeças | L15: 0.4442738043 | AM15: =CONCATENATE("Ilustração ",AN10,".B"," - ",AN11) -> Ilustração 2.B - Variação percentual do nível de emprego no comércio varejista acumulada no ano | AN15: =IF(AN10=0,"",AM15) -> Ilustração 2.B - Variação percentual do nível de emprego no comércio varejista acumulada no ano
D16: 2019-07-01 | E16: -2.203482172 | K16: Cine-Foto-Som-Informática | L16: -1.097711812
D17: 2019-08-01 | E17: -2.030258299 | K17: Farmácias, Perfumarias e Higiene Pessoal | L17: -1.361300181
D18: 2019-09-01 | E18: -1.679153997 | K18: Materiais de Construção | L18: -1.385357754
D19: 2019-10-01 | E19: -1.330843628 | K19: Móveis e Decorações | L19: -1.578096777
D20: 2019-11-01 | E20: -0.149475439 | K20: > Todos | L20: -1.679153997
D21: 2019-12-01 | E21: 0.4842817961 | K21: Tecidos | L21: -1.98019802
K22: Óticas e Relojoarias | L22: -2.028289298
K23: Livrarias e Jornais | L23: -5.9192772
K24: Vestuário | L24: -9.333967085
K25: Calçados | L25: -20.38053888
AU51: =$AN$15 -> Ilustração 2.B - Variação percentual do nível de emprego no comércio varejista acumulada no ano
AU55: =IF(ISERROR(#REF!),"",#REF!) -> 
AU271: =IF(D221<>"",D221,"") ->  | AW271: =IF(E221<>"",E221,"") ->  | AY271: =IF(F221<>"",F221,"") ->  | BA271: =IF(H221<>"",H221,"") -> 
AU335: =IF(D285<>"",D285,"") ->  | AW335: =IF(E285<>"",E285,"") ->  | AY335: =IF(F285<>"",F285,"") ->  | BA335: =IF(H285<>"",H285,"") -> 
AU399: =IF(D349<>"",D349,"") ->  | AW399: =IF(E349<>"",E349,"") ->  | AY399: =IF(F349<>"",F349,"") ->  | BA399: =IF(H349<>"",H349,"") -> 
AU463: =IF(D413<>"",D413,"") ->  | AW463: =IF(E413<>"",E413,"") ->  | AY463: =IF(F413<>"",F413,"") ->  | BA463: =IF(H413<>"",H413,"") -> 
AU527: =IF(D477<>"",D477,"") ->  | AW527: =IF(E477<>"",E477,"") ->  | AY527: =IF(F477<>"",F477,"") ->  | BA527: =IF(H477<>"",H477,"") -> 
AU591: =IF(D541<>"",D541,"") ->  | AW591: =IF(E541<>"",E541,"") ->  | AY591: =IF(F541<>"",F541,"") ->  | BA591: =IF(H541<>"",H541,"") -> 
AU655: =IF(D605<>"",D605,"") ->  | AW655: =IF(E605<>"",E605,"") ->  | AY655: =IF(F605<>"",F605,"") ->  | BA655: =IF(H605<>"",H605,"") -> 
AU719: =IF(D669<>"",D669,"") ->  | AW719: =IF(E669<>"",E669,"") ->  | AY719: =IF(F669<>"",F669,"") ->  | BA719: =IF(H669<>"",H669,"") -> 
AU783: =IF(D733<>"",D733,"") ->  | AW783: =IF(E733<>"",E733,"") ->  | AY783: =IF(F733<>"",F733,"") ->  | BA783: =IF(H733<>"",H733,"") -> 
AU847: =IF(D797<>"",D797,"") ->  | AW847: =IF(E797<>"",E797,"") ->  | AY847: =IF(F797<>"",F797,"") ->  | BA847: =IF(H797<>"",H797,"") -> 
AU911: =IF(D861<>"",D861,"") ->  | AW911: =IF(E861<>"",E861,"") ->  | AY911: =IF(F861<>"",F861,"") ->  | BA911: =IF(H861<>"",H861,"") -> 
AU975: =IF(D925<>"",D925,"") ->  | AW975: =IF(E925<>"",E925,"") ->  | AY975: =IF(F925<>"",F925,"") ->  | BA975: =IF(H925<>"",H925,"") -> 
AU1039: =IF(D989<>"",D989,"") ->  | AW1039: =IF(E989<>"",E989,"") ->  | AY1039: =IF(F989<>"",F989,"") ->  | BA1039: =IF(H989<>"",H989,"") -> 
AU1103: =IF(D1053<>"",D1053,"") ->  | AW1103: =IF(E1053<>"",E1053,"") ->  | AY1103: =IF(F1053<>"",F1053,"") ->  | BA1103: =IF(H1053<>"",H1053,"") -> 
AU1167: =IF(D1117<>"",D1117,"") ->  | AW1167: =IF(E1117<>"",E1117,"") ->  | AY1167: =IF(F1117<>"",F1117,"") ->  | BA1167: =IF(H1117<>"",H1117,"") -> 
AU1231: =IF(D1181<>"",D1181,"") ->  | AW1231: =IF(E1181<>"",E1181,"") ->  | AY1231: =IF(F1181<>"",F1181,"") ->  | BA1231: =IF(H1181<>"",H1181,"") -> 
AU1295: =IF(D1245<>"",D1245,"") ->  | AW1295: =IF(E1245<>"",E1245,"") ->  | AY1295: =IF(F1245<>"",F1245,"") ->  | BA1295: =IF(H1245<>"",H1245,"") -> 
AU1359: =IF(D1309<>"",D1309,"") ->  | AW1359: =IF(E1309<>"",E1309,"") ->  | AY1359: =IF(F1309<>"",F1309,"") ->  | BA1359: =IF(H1309<>"",H1309,"") -> 
AU1423: =IF(D1373<>"",D1373,"") ->  | AW1423: =IF(E1373<>"",E1373,"") ->  | AY1423: =IF(F1373<>"",F1373,"") ->  | BA1423: =IF(H1373<>"",H1373,"") -> 
AU1487: =IF(D1437<>"",D1437,"") ->  | AW1487: =IF(E1437<>"",E1437,"") ->  | AY1487: =IF(F1437<>"",F1437,"") ->  | BA1487: =IF(H1437<>"",H1437,"") -> 
AU1551: =IF(D1501<>"",D1501,"") ->  | AW1551: =IF(E1501<>"",E1501,"") ->  | AY1551: =IF(F1501<>"",F1501,"") ->  | BA1551: =IF(H1501<>"",H1501,"") -> 
AU1591: =IF(D1541<>"",D1541,"") -> 
AU1592: =IF(D1542<>"",D1542,"") -> 
AU1593: =IF(D1543<>"",D1543,"") -> 
AU1594: =IF(D1544<>"",D1544,"") -> 

Sheet l3
AU2: =$AN$14 -> Ilustração 3.A - Variação percentual do nível de emprego no comércio varejista acumulada em 12 meses
D3: =CONCATENATE("Selecionado por subconjunto: ",MID(E6,1,200)) -> Selecionado por subconjunto: > Todos
AU4: =$D$3 -> Selecionado por subconjunto: > Todos
D5: h | E5: 3
D6: g | E6: > Todos
K7: h | L7: 3 | AU7: =IF(ISERROR(#REF!),"",#REF!) -> 
D8: Rótulos de Linha | E8: Média de v | K8: y1 | L8: 2019-09-01
D9: 2018-12-01 | E9: 0.8140195383
D10: 2019-01-01 | E10: 0.5739820121 | K10: Rótulos de Linha | L10: Média de v | AM10: Número: | AN10: 3
D11: 2019-02-01 | E11: 0.9076037449 | K11: Lojas de Departamentos, Variedades e Duty Free | L11: 7.158509861 | AM11: Título: | AN11: Variação percentual do nível de emprego no comércio varejista acumulada em 12 meses
D12: 2019-03-01 | E12: 0.5517478379 | K12: Revendedora de Veículos | L12: 3.272660416
D13: 2019-04-01 | E13: 0.5743918555 | K13: Produtos Alimentícios e Bebidas | L13: 2.195267386
D14: 2019-05-01 | E14: 0.5398690937 | K14: Livrarias e Jornais | L14: 2.00927357 | AM14: =CONCATENATE("Ilustração ",AN10,".A"," - ",AN11) -> Ilustração 3.A - Variação percentual do nível de emprego no comércio varejista acumulada em 12 meses | AN14: =IF(AN10=0,"",AM14) -> Ilustração 3.A - Variação percentual do nível de emprego no comércio varejista acumulada em 12 meses
D15: 2019-06-01 | E15: 0.6553701548 | K15: Combustíveis, Lubrificantes e GLP | L15: 1.408104789 | AM15: =CONCATENATE("Ilustração ",AN10,".B"," - ",AN11) -> Ilustração 3.B - Variação percentual do nível de emprego no comércio varejista acumulada em 12 meses | AN15: =IF(AN10=0,"",AM15) -> Ilustração 3.B - Variação percentual do nível de emprego no comércio varejista acumulada em 12 meses
D16: 2019-07-01 | E16: 0.8436488654 | K16: Autopeças | L16: 0.8813970143
D17: 2019-08-01 | E17: 0.6390662744 | K17: Tecidos | L17: 0.8191277397
D18: 2019-09-01 | E18: 0.6137512687 | K18: > Todos | L18: 0.6137512687
D19: 2019-10-01 | E19: 0.7407231321 | K19: Materiais de Construção | L19: 0.3166895387
D20: 2019-11-01 | E20: 0.7300024427 | K20: Farmácias, Perfumarias e Higiene Pessoal | L20: -0.4765241766
D21: 2019-12-01 | E21: 0.4842817961 | K21: Cine-Foto-Som-Informática | L21: -0.5441542289
K22: Óticas e Relojoarias | L22: -1.343724805
K23: Móveis e Decorações | L23: -1.531291611
K24: Calçados | L24: -2.471453152
K25: Vestuário | L25: -2.721999108
AU51: =$AN$15 -> Ilustração 3.B - Variação percentual do nível de emprego no comércio varejista acumulada em 12 meses
AU55: =IF(ISERROR(#REF!),"",#REF!) -> 
AU271: =IF(D221<>"",D221,"") ->  | AW271: =IF(E221<>"",E221,"") ->  | AY271: =IF(F221<>"",F221,"") ->  | BA271: =IF(H221<>"",H221,"") -> 
AU335: =IF(D285<>"",D285,"") ->  | AW335: =IF(E285<>"",E285,"") ->  | AY335: =IF(F285<>"",F285,"") ->  | BA335: =IF(H285<>"",H285,"") -> 
AU399: =IF(D349<>"",D349,"") ->  | AW399: =IF(E349<>"",E349,"") ->  | AY399: =IF(F349<>"",F349,"") ->  | BA399: =IF(H349<>"",H349,"") -> 
AU463: =IF(D413<>"",D413,"") ->  | AW463: =IF(E413<>"",E413,"") ->  | AY463: =IF(F413<>"",F413,"") ->  | BA463: =IF(H413<>"",H413,"") -> 
AU527: =IF(D477<>"",D477,"") ->  | AW527: =IF(E477<>"",E477,"") ->  | AY527: =IF(F477<>"",F477,"") ->  | BA527: =IF(H477<>"",H477,"") -> 
AU591: =IF(D541<>"",D541,"") ->  | AW591: =IF(E541<>"",E541,"") ->  | AY591: =IF(F541<>"",F541,"") ->  | BA591: =IF(H541<>"",H541,"") -> 
AU655: =IF(D605<>"",D605,"") ->  | AW655: =IF(E605<>"",E605,"") ->  | AY655: =IF(F605<>"",F605,"") ->  | BA655: =IF(H605<>"",H605,"") -> 
AU719: =IF(D669<>"",D669,"") ->  | AW719: =IF(E669<>"",E669,"") ->  | AY719: =IF(F669<>"",F669,"") ->  | BA719: =IF(H669<>"",H669,"") -> 
AU783: =IF(D733<>"",D733,"") ->  | AW783: =IF(E733<>"",E733,"") ->  | AY783: =IF(F733<>"",F733,"") ->  | BA783: =IF(H733<>"",H733,"") -> 
AU847: =IF(D797<>"",D797,"") ->  | AW847: =IF(E797<>"",E797,"") ->  | AY847: =IF(F797<>"",F797,"") ->  | BA847: =IF(H797<>"",H797,"") -> 
AU911: =IF(D861<>"",D861,"") ->  | AW911: =IF(E861<>"",E861,"") ->  | AY911: =IF(F861<>"",F861,"") ->  | BA911: =IF(H861<>"",H861,"") -> 
AU975: =IF(D925<>"",D925,"") ->  | AW975: =IF(E925<>"",E925,"") ->  | AY975: =IF(F925<>"",F925,"") ->  | BA975: =IF(H925<>"",H925,"") -> 
AU1039: =IF(D989<>"",D989,"") ->  | AW1039: =IF(E989<>"",E989,"") ->  | AY1039: =IF(F989<>"",F989,"") ->  | BA1039: =IF(H989<>"",H989,"") -> 
AU1103: =IF(D1053<>"",D1053,"") ->  | AW1103: =IF(E1053<>"",E1053,"") ->  | AY1103: =IF(F1053<>"",F1053,"") ->  | BA1103: =IF(H1053<>"",H1053,"") -> 
AU1167: =IF(D1117<>"",D1117,"") ->  | AW1167: =IF(E1117<>"",E1117,"") ->  | AY1167: =IF(F1117<>"",F1117,"") ->  | BA1167: =IF(H1117<>"",H1117,"") -> 
AU1231: =IF(D1181<>"",D1181,"") ->  | AW1231: =IF(E1181<>"",E1181,"") ->  | AY1231: =IF(F1181<>"",F1181,"") ->  | BA1231: =IF(H1181<>"",H1181,"") -> 
AU1295: =IF(D1245<>"",D1245,"") ->  | AW1295: =IF(E1245<>"",E1245,"") ->  | AY1295: =IF(F1245<>"",F1245,"") ->  | BA1295: =IF(H1245<>"",H1245,"") -> 
AU1359: =IF(D1309<>"",D1309,"") ->  | AW1359: =IF(E1309<>"",E1309,"") ->  | AY1359: =IF(F1309<>"",F1309,"") ->  | BA1359: =IF(H1309<>"",H1309,"") -> 
AU1423: =IF(D1373<>"",D1373,"") ->  | AW1423: =IF(E1373<>"",E1373,"") ->  | AY1423: =IF(F1373<>"",F1373,"") ->  | BA1423: =IF(H1373<>"",H1373,"") -> 
AU1487: =IF(D1437<>"",D1437,"") ->  | AW1487: =IF(E1437<>"",E1437,"") ->  | AY1487: =IF(F1437<>"",F1437,"") ->  | BA1487: =IF(H1437<>"",H1437,"") -> 
AU1551: =IF(D1501<>"",D1501,"") ->  | AW1551: =IF(E1501<>"",E1501,"") ->  | AY1551: =IF(F1501<>"",F1501,"") ->  | BA1551: =IF(H1501<>"",H1501,"") -> 
AU1591: =IF(D1541<>"",D1541,"") -> 
AU1592: =IF(D1542<>"",D1542,"") -> 
AU1593: =IF(D1543<>"",D1543,"") -> 
AU1594: =IF(D1544<>"",D1544,"") -> 

Sheet l4
AU2: =$AN$14 -> Ilustração 4.A - Taxa percentual de admitidos do número de empregados no comércio varejista
D3: =CONCATENATE("Selecionado por subconjunto: ",MID(E6,1,200)) -> Selecionado por subconjunto: > Todos
AU4: =$D$3 -> Selecionado por subconjunto: > Todos
D5: h | E5: 4
D6: g | E6: > Todos
K7: h | L7: 4 | AU7: =IF(ISERROR(#REF!),"",#REF!) -> 
D8: Rótulos de Linha | E8: Média de v | K8: y1 | L8: 2019-09-01
D9: 2018-12-01 | E9: 3.00953197
D10: 2019-01-01 | E10: 2.603552529 | K10: Rótulos de Linha | L10: Média de v | AM10: Número: | AN10: 4
D11: 2019-02-01 | E11: 2.915264491 | K11: Lojas de Departamentos, Variedades e Duty Free | L11: 3.919563736 | AM11: Título: | AN11: Taxa percentual de admitidos do número de empregados no comércio varejista
D12: 2019-03-01 | E12: 2.410856687 | K12: Vestuário | L12: 3.551769332
D13: 2019-04-01 | E13: 2.884492237 | K13: Óticas e Relojoarias | L13: 3.514028875
D14: 2019-05-01 | E14: 2.895362098 | K14: Produtos Alimentícios e Bebidas | L14: 3.288958496 | AM14: =CONCATENATE("Ilustração ",AN10,".A"," - ",AN11) -> Ilustração 4.A - Taxa percentual de admitidos do número de empregados no comércio varejista | AN14: =IF(AN10=0,"",AM14) -> Ilustração 4.A - Taxa percentual de admitidos do número de empregados no comércio varejista
D15: 2019-06-01 | E15: 2.719592585 | K15: Farmácias, Perfumarias e Higiene Pessoal | L15: 3.253062949 | AM15: =CONCATENATE("Ilustração ",AN10,".B"," - ",AN11) -> Ilustração 4.B - Taxa percentual de admitidos do número de empregados no comércio varejista | AN15: =IF(AN10=0,"",AM15) -> Ilustração 4.B - Taxa percentual de admitidos do número de empregados no comércio varejista
D16: 2019-07-01 | E16: 3.040201125 | K16: Calçados | L16: 3.079390537
D17: 2019-08-01 | E17: 3.008208526 | K17: Livrarias e Jornais | L17: 3.068181818
D18: 2019-09-01 | E18: 3.014989699 | K18: Combustíveis, Lubrificantes e GLP | L18: 3.0677323
D19: 2019-10-01 | E19: 3.244090178 | K19: > Todos | L19: 3.014989699
D20: 2019-11-01 | E20: 3.468264702 | K20: Tecidos | L20: 2.832674572
D21: 2019-12-01 | E21: 2.900955091 | K21: Cine-Foto-Som-Informática | L21: 2.699181908
K22: Móveis e Decorações | L22: 2.694871052
K23: Revendedora de Veículos | L23: 2.688267759
K24: Autopeças | L24: 2.451810189
K25: Materiais de Construção | L25: 2.299273914
AU51: =$AN$15 -> Ilustração 4.B - Taxa percentual de admitidos do número de empregados no comércio varejista
AU55: =IF(ISERROR(#REF!),"",#REF!) -> 
AU271: =IF(D221<>"",D221,"") ->  | AW271: =IF(E221<>"",E221,"") ->  | AY271: =IF(F221<>"",F221,"") ->  | BA271: =IF(H221<>"",H221,"") -> 
AU335: =IF(D285<>"",D285,"") ->  | AW335: =IF(E285<>"",E285,"") ->  | AY335: =IF(F285<>"",F285,"") ->  | BA335: =IF(H285<>"",H285,"") -> 
AU399: =IF(D349<>"",D349,"") ->  | AW399: =IF(E349<>"",E349,"") ->  | AY399: =IF(F349<>"",F349,"") ->  | BA399: =IF(H349<>"",H349,"") -> 
AU463: =IF(D413<>"",D413,"") ->  | AW463: =IF(E413<>"",E413,"") ->  | AY463: =IF(F413<>"",F413,"") ->  | BA463: =IF(H413<>"",H413,"") -> 
AU527: =IF(D477<>"",D477,"") ->  | AW527: =IF(E477<>"",E477,"") ->  | AY527: =IF(F477<>"",F477,"") ->  | BA527: =IF(H477<>"",H477,"") -> 
AU591: =IF(D541<>"",D541,"") ->  | AW591: =IF(E541<>"",E541,"") ->  | AY591: =IF(F541<>"",F541,"") ->  | BA591: =IF(H541<>"",H541,"") -> 
AU655: =IF(D605<>"",D605,"") ->  | AW655: =IF(E605<>"",E605,"") ->  | AY655: =IF(F605<>"",F605,"") ->  | BA655: =IF(H605<>"",H605,"") -> 
AU719: =IF(D669<>"",D669,"") ->  | AW719: =IF(E669<>"",E669,"") ->  | AY719: =IF(F669<>"",F669,"") ->  | BA719: =IF(H669<>"",H669,"") -> 
AU783: =IF(D733<>"",D733,"") ->  | AW783: =IF(E733<>"",E733,"") ->  | AY783: =IF(F733<>"",F733,"") ->  | BA783: =IF(H733<>"",H733,"") -> 
AU847: =IF(D797<>"",D797,"") ->  | AW847: =IF(E797<>"",E797,"") ->  | AY847: =IF(F797<>"",F797,"") ->  | BA847: =IF(H797<>"",H797,"") -> 
AU911: =IF(D861<>"",D861,"") ->  | AW911: =IF(E861<>"",E861,"") ->  | AY911: =IF(F861<>"",F861,"") ->  | BA911: =IF(H861<>"",H861,"") -> 
AU975: =IF(D925<>"",D925,"") ->  | AW975: =IF(E925<>"",E925,"") ->  | AY975: =IF(F925<>"",F925,"") ->  | BA975: =IF(H925<>"",H925,"") -> 
AU1039: =IF(D989<>"",D989,"") ->  | AW1039: =IF(E989<>"",E989,"") ->  | AY1039: =IF(F989<>"",F989,"") ->  | BA1039: =IF(H989<>"",H989,"") -> 
AU1103: =IF(D1053<>"",D1053,"") ->  | AW1103: =IF(E1053<>"",E1053,"") ->  | AY1103: =IF(F1053<>"",F1053,"") ->  | BA1103: =IF(H1053<>"",H1053,"") -> 
AU1167: =IF(D1117<>"",D1117,"") ->  | AW1167: =IF(E1117<>"",E1117,"") ->  | AY1167: =IF(F1117<>"",F1117,"") ->  | BA1167: =IF(H1117<>"",H1117,"") -> 
AU1231: =IF(D1181<>"",D1181,"") ->  | AW1231: =IF(E1181<>"",E1181,"") ->  | AY1231: =IF(F1181<>"",F1181,"") ->  | BA1231: =IF(H1181<>"",H1181,"") -> 
AU1295: =IF(D1245<>"",D1245,"") ->  | AW1295: =IF(E1245<>"",E1245,"") ->  | AY1295: =IF(F1245<>"",F1245,"") ->  | BA1295: =IF(H1245<>"",H1245,"") -> 
AU1359: =IF(D1309<>"",D1309,"") ->  | AW1359: =IF(E1309<>"",E1309,"") ->  | AY1359: =IF(F1309<>"",F1309,"") ->  | BA1359: =IF(H1309<>"",H1309,"") -> 
AU1423: =IF(D1373<>"",D1373,"") ->  | AW1423: =IF(E1373<>"",E1373,"") ->  | AY1423: =IF(F1373<>"",F1373,"") ->  | BA1423: =IF(H1373<>"",H1373,"") -> 
AU1487: =IF(D1437<>"",D1437,"") ->  | AW1487: =IF(E1437<>"",E1437,"") ->  | AY1487: =IF(F1437<>"",F1437,"") ->  | BA1487: =IF(H1437<>"",H1437,"") -> 
AU1551: =IF(D1501<>"",D1501,"") ->  | AW1551: =IF(E1501<>"",E1501,"") ->  | AY1551: =IF(F1501<>"",F1501,"") ->  | BA1551: =IF(H1501<>"",H1501,"") -> 
AU1591: =IF(D1541<>"",D1541,"") -> 
AU1592: =IF(D1542<>"",D1542,"") -> 
AU1593: =IF(D1543<>"",D1543,"") -> 
AU1594: =IF(D1544<>"",D1544,"") -> 

Sheet l5
AU2: =$AN$14 -> Ilustração 5.A - Taxa percentual de demitidos do número de empregados no comércio varejista
D3: =CONCATENATE("Selecionado por subconjunto: ",MID(E6,1,200)) -> Selecionado por subconjunto: > Todos
AU4: =$D$3 -> Selecionado por subconjunto: > Todos
D5: h | E5: 5
D6: g | E6: > Todos
K7: h | L7: 5 | AU7: =IF(ISERROR(#REF!),"",#REF!) -> 
D8: Rótulos de Linha | E8: Média de v | K8: y1 | L8: 2019-09-01
D9: 2018-12-01 | E9: 2.13642777
D10: 2019-01-01 | E10: 3.892594025 | K10: Rótulos de Linha | L10: Média de v | AM10: Número: | AN10: 5
D11: 2019-02-01 | E11: 3.124172874 | K11: Livrarias e Jornais | L11: 3.446969697 | AM11: Título: | AN11: Taxa percentual de demitidos do número de empregados no comércio varejista
D12: 2019-03-01 | E12: 2.839959748 | K12: Vestuário | L12: 3.256880734
D13: 2019-04-01 | E13: 2.815712205 | K13: Calçados | L13: 3.127506014
D14: 2019-05-01 | E14: 3.074510549 | K14: Combustíveis, Lubrificantes e GLP | L14: 3.091951239 | AM14: =CONCATENATE("Ilustração ",AN10,".A"," - ",AN11) -> Ilustração 5.A - Taxa percentual de demitidos do número de empregados no comércio varejista | AN14: =IF(AN10=0,"",AM14) -> Ilustração 5.A - Taxa percentual de demitidos do número de empregados no comércio varejista
D15: 2019-06-01 | E15: 2.879036672 | K15: Óticas e Relojoarias | L15: 2.969218197 | AM15: =CONCATENATE("Ilustração ",AN10,".B"," - ",AN11) -> Ilustração 5.B - Taxa percentual de demitidos do número de empregados no comércio varejista | AN15: =IF(AN10=0,"",AM15) -> Ilustração 5.B - Taxa percentual de demitidos do número de empregados no comércio varejista
D16: 2019-07-01 | E16: 3.081149801 | K16: Produtos Alimentícios e Bebidas | L16: 2.829855513
D17: 2019-08-01 | E17: 2.831394879 | K17: Tecidos | L17: 2.711901625
D18: 2019-09-01 | E18: 2.657889128 | K18: > Todos | L18: 2.657889128
D19: 2019-10-01 | E19: 2.89108182 | K19: Farmácias, Perfumarias e Higiene Pessoal | L19: 2.656902784
D20: 2019-11-01 | E20: 2.285128014 | K20: Cine-Foto-Som-Informática | L20: 2.652284925
D21: 2019-12-01 | E21: 2.270252235 | K21: Lojas de Departamentos, Variedades e Duty Free | L21: 2.419904567
K22: Autopeças | L22: 2.369901163
K23: Móveis e Decorações | L23: 2.347145755
K24: Revendedora de Veículos | L24: 1.815915969
K25: Materiais de Construção | L25: 1.694201831
AU51: =$AN$15 -> Ilustração 5.B - Taxa percentual de demitidos do número de empregados no comércio varejista
AU55: =IF(ISERROR(#REF!),"",#REF!) -> 
AU271: =IF(D221<>"",D221,"") ->  | AW271: =IF(E221<>"",E221,"") ->  | AY271: =IF(F221<>"",F221,"") ->  | BA271: =IF(H221<>"",H221,"") -> 
AU335: =IF(D285<>"",D285,"") ->  | AW335: =IF(E285<>"",E285,"") ->  | AY335: =IF(F285<>"",F285,"") ->  | BA335: =IF(H285<>"",H285,"") -> 
AU399: =IF(D349<>"",D349,"") ->  | AW399: =IF(E349<>"",E349,"") ->  | AY399: =IF(F349<>"",F349,"") ->  | BA399: =IF(H349<>"",H349,"") -> 
AU463: =IF(D413<>"",D413,"") ->  | AW463: =IF(E413<>"",E413,"") ->  | AY463: =IF(F413<>"",F413,"") ->  | BA463: =IF(H413<>"",H413,"") -> 
AU527: =IF(D477<>"",D477,"") ->  | AW527: =IF(E477<>"",E477,"") ->  | AY527: =IF(F477<>"",F477,"") ->  | BA527: =IF(H477<>"",H477,"") -> 
AU591: =IF(D541<>"",D541,"") ->  | AW591: =IF(E541<>"",E541,"") ->  | AY591: =IF(F541<>"",F541,"") ->  | BA591: =IF(H541<>"",H541,"") -> 
AU655: =IF(D605<>"",D605,"") ->  | AW655: =IF(E605<>"",E605,"") ->  | AY655: =IF(F605<>"",F605,"") ->  | BA655: =IF(H605<>"",H605,"") -> 
AU719: =IF(D669<>"",D669,"") ->  | AW719: =IF(E669<>"",E669,"") ->  | AY719: =IF(F669<>"",F669,"") ->  | BA719: =IF(H669<>"",H669,"") -> 
AU783: =IF(D733<>"",D733,"") ->  | AW783: =IF(E733<>"",E733,"") ->  | AY783: =IF(F733<>"",F733,"") ->  | BA783: =IF(H733<>"",H733,"") -> 
AU847: =IF(D797<>"",D797,"") ->  | AW847: =IF(E797<>"",E797,"") ->  | AY847: =IF(F797<>"",F797,"") ->  | BA847: =IF(H797<>"",H797,"") -> 
AU911: =IF(D861<>"",D861,"") ->  | AW911: =IF(E861<>"",E861,"") ->  | AY911: =IF(F861<>"",F861,"") ->  | BA911: =IF(H861<>"",H861,"") -> 
AU975: =IF(D925<>"",D925,"") ->  | AW975: =IF(E925<>"",E925,"") ->  | AY975: =IF(F925<>"",F925,"") ->  | BA975: =IF(H925<>"",H925,"") -> 
AU1039: =IF(D989<>"",D989,"") ->  | AW1039: =IF(E989<>"",E989,"") ->  | AY1039: =IF(F989<>"",F989,"") ->  | BA1039: =IF(H989<>"",H989,"") -> 
AU1103: =IF(D1053<>"",D1053,"") ->  | AW1103: =IF(E1053<>"",E1053,"") ->  | AY1103: =IF(F1053<>"",F1053,"") ->  | BA1103: =IF(H1053<>"",H1053,"") -> 
AU1167: =IF(D1117<>"",D1117,"") ->  | AW1167: =IF(E1117<>"",E1117,"") ->  | AY1167: =IF(F1117<>"",F1117,"") ->  | BA1167: =IF(H1117<>"",H1117,"") -> 
AU1231: =IF(D1181<>"",D1181,"") ->  | AW1231: =IF(E1181<>"",E1181,"") ->  | AY1231: =IF(F1181<>"",F1181,"") ->  | BA1231: =IF(H1181<>"",H1181,"") -> 
AU1295: =IF(D1245<>"",D1245,"") ->  | AW1295: =IF(E1245<>"",E1245,"") ->  | AY1295: =IF(F1245<>"",F1245,"") ->  | BA1295: =IF(H1245<>"",H1245,"") -> 
AU1359: =IF(D1309<>"",D1309,"") ->  | AW1359: =IF(E1309<>"",E1309,"") ->  | AY1359: =IF(F1309<>"",F1309,"") ->  | BA1359: =IF(H1309<>"",H1309,"") -> 
AU1423: =IF(D1373<>"",D1373,"") ->  | AW1423: =IF(E1373<>"",E1373,"") ->  | AY1423: =IF(F1373<>"",F1373,"") ->  | BA1423: =IF(H1373<>"",H1373,"") -> 
AU1487: =IF(D1437<>"",D1437,"") ->  | AW1487: =IF(E1437<>"",E1437,"") ->  | AY1487: =IF(F1437<>"",F1437,"") ->  | BA1487: =IF(H1437<>"",H1437,"") -> 
AU1551: =IF(D1501<>"",D1501,"") ->  | AW1551: =IF(E1501<>"",E1501,"") ->  | AY1551: =IF(F1501<>"",F1501,"") ->  | BA1551: =IF(H1501<>"",H1501,"") -> 
AU1591: =IF(D1541<>"",D1541,"") -> 
AU1592: =IF(D1542<>"",D1542,"") -> 
AU1593: =IF(D1543<>"",D1543,"") -> 
AU1594: =IF(D1544<>"",D1544,"") -> 

Sheet l6
AU2: =$AN$14 -> Ilustração 6.A - Taxa percentual de rotatividade do número de empregados no comércio varejista
D3: =CONCATENATE("Selecionado por subconjunto: ",MID(E6,1,200)) -> Selecionado por subconjunto: > Todos
AU4: =$D$3 -> Selecionado por subconjunto: > Todos
D5: h | E5: 6
D6: g | E6: > Todos
K7: h | L7: 6 | AU7: =IF(ISERROR(#REF!),"",#REF!) -> 
D8: Rótulos de Linha | E8: Média de v | K8: y1 | L8: 2019-09-01
D9: 2018-12-01 | E9: 2.13642777
D10: 2019-01-01 | E10: 2.603552529 | K10: Rótulos de Linha | L10: Média de v | AM10: Número: | AN10: 6
D11: 2019-02-01 | E11: 2.915264491 | K11: Vestuário | L11: 3.256880734 | AM11: Título: | AN11: Taxa percentual de rotatividade do número de empregados no comércio varejista
D12: 2019-03-01 | E12: 2.410856687 | K12: Calçados | L12: 3.079390537
D13: 2019-04-01 | E13: 2.815712205 | K13: Livrarias e Jornais | L13: 3.068181818
D14: 2019-05-01 | E14: 2.895362098 | K14: Combustíveis, Lubrificantes e GLP | L14: 3.0677323 | AM14: =CONCATENATE("Ilustração ",AN10,".A"," - ",AN11) -> Ilustração 6.A - Taxa percentual de rotatividade do número de empregados no comércio varejista | AN14: =IF(AN10=0,"",AM14) -> Ilustração 6.A - Taxa percentual de rotatividade do número de empregados no comércio varejista
D15: 2019-06-01 | E15: 2.719592585 | K15: Óticas e Relojoarias | L15: 2.969218197 | AM15: =CONCATENATE("Ilustração ",AN10,".B"," - ",AN11) -> Ilustração 6.B - Taxa percentual de rotatividade do número de empregados no comércio varejista | AN15: =IF(AN10=0,"",AM15) -> Ilustração 6.B - Taxa percentual de rotatividade do número de empregados no comércio varejista
D16: 2019-07-01 | E16: 3.040201125 | K16: Produtos Alimentícios e Bebidas | L16: 2.829855513
D17: 2019-08-01 | E17: 2.831394879 | K17: Tecidos | L17: 2.711901625
D18: 2019-09-01 | E18: 2.657889128 | K18: > Todos | L18: 2.657889128
D19: 2019-10-01 | E19: 2.89108182 | K19: Farmácias, Perfumarias e Higiene Pessoal | L19: 2.656902784
D20: 2019-11-01 | E20: 2.285128014 | K20: Cine-Foto-Som-Informática | L20: 2.652284925
D21: 2019-12-01 | E21: 2.270252235 | K21: Lojas de Departamentos, Variedades e Duty Free | L21: 2.419904567
K22: Autopeças | L22: 2.369901163
K23: Móveis e Decorações | L23: 2.347145755
K24: Revendedora de Veículos | L24: 1.815915969
K25: Materiais de Construção | L25: 1.694201831
AU51: =$AN$15 -> Ilustração 6.B - Taxa percentual de rotatividade do número de empregados no comércio varejista
AU55: =IF(ISERROR(#REF!),"",#REF!) -> 
AU271: =IF(D221<>"",D221,"") ->  | AW271: =IF(E221<>"",E221,"") ->  | AY271: =IF(F221<>"",F221,"") ->  | BA271: =IF(H221<>"",H221,"") -> 
AU335: =IF(D285<>"",D285,"") ->  | AW335: =IF(E285<>"",E285,"") ->  | AY335: =IF(F285<>"",F285,"") ->  | BA335: =IF(H285<>"",H285,"") -> 
AU399: =IF(D349<>"",D349,"") ->  | AW399: =IF(E349<>"",E349,"") ->  | AY399: =IF(F349<>"",F349,"") ->  | BA399: =IF(H349<>"",H349,"") -> 
AU463: =IF(D413<>"",D413,"") ->  | AW463: =IF(E413<>"",E413,"") ->  | AY463: =IF(F413<>"",F413,"") ->  | BA463: =IF(H413<>"",H413,"") -> 
AU527: =IF(D477<>"",D477,"") ->  | AW527: =IF(E477<>"",E477,"") ->  | AY527: =IF(F477<>"",F477,"") ->  | BA527: =IF(H477<>"",H477,"") -> 
AU591: =IF(D541<>"",D541,"") ->  | AW591: =IF(E541<>"",E541,"") ->  | AY591: =IF(F541<>"",F541,"") ->  | BA591: =IF(H541<>"",H541,"") -> 
AU655: =IF(D605<>"",D605,"") ->  | AW655: =IF(E605<>"",E605,"") ->  | AY655: =IF(F605<>"",F605,"") ->  | BA655: =IF(H605<>"",H605,"") -> 
AU719: =IF(D669<>"",D669,"") ->  | AW719: =IF(E669<>"",E669,"") ->  | AY719: =IF(F669<>"",F669,"") ->  | BA719: =IF(H669<>"",H669,"") -> 
AU783: =IF(D733<>"",D733,"") ->  | AW783: =IF(E733<>"",E733,"") ->  | AY783: =IF(F733<>"",F733,"") ->  | BA783: =IF(H733<>"",H733,"") -> 
AU847: =IF(D797<>"",D797,"") ->  | AW847: =IF(E797<>"",E797,"") ->  | AY847: =IF(F797<>"",F797,"") ->  | BA847: =IF(H797<>"",H797,"") -> 
AU911: =IF(D861<>"",D861,"") ->  | AW911: =IF(E861<>"",E861,"") ->  | AY911: =IF(F861<>"",F861,"") ->  | BA911: =IF(H861<>"",H861,"") -> 
AU975: =IF(D925<>"",D925,"") ->  | AW975: =IF(E925<>"",E925,"") ->  | AY975: =IF(F925<>"",F925,"") ->  | BA975: =IF(H925<>"",H925,"") -> 
AU1039: =IF(D989<>"",D989,"") ->  | AW1039: =IF(E989<>"",E989,"") ->  | AY1039: =IF(F989<>"",F989,"") ->  | BA1039: =IF(H989<>"",H989,"") -> 
AU1103: =IF(D1053<>"",D1053,"") ->  | AW1103: =IF(E1053<>"",E1053,"") ->  | AY1103: =IF(F1053<>"",F1053,"") ->  | BA1103: =IF(H1053<>"",H1053,"") -> 
AU1167: =IF(D1117<>"",D1117,"") ->  | AW1167: =IF(E1117<>"",E1117,"") ->  | AY1167: =IF(F1117<>"",F1117,"") ->  | BA1167: =IF(H1117<>"",H1117,"") -> 
AU1231: =IF(D1181<>"",D1181,"") ->  | AW1231: =IF(E1181<>"",E1181,"") ->  | AY1231: =IF(F1181<>"",F1181,"") ->  | BA1231: =IF(H1181<>"",H1181,"") -> 
AU1295: =IF(D1245<>"",D1245,"") ->  | AW1295: =IF(E1245<>"",E1245,"") ->  | AY1295: =IF(F1245<>"",F1245,"") ->  | BA1295: =IF(H1245<>"",H1245,"") -> 
AU1359: =IF(D1309<>"",D1309,"") ->  | AW1359: =IF(E1309<>"",E1309,"") ->  | AY1359: =IF(F1309<>"",F1309,"") ->  | BA1359: =IF(H1309<>"",H1309,"") -> 
AU1423: =IF(D1373<>"",D1373,"") ->  | AW1423: =IF(E1373<>"",E1373,"") ->  | AY1423: =IF(F1373<>"",F1373,"") ->  | BA1423: =IF(H1373<>"",H1373,"") -> 
AU1487: =IF(D1437<>"",D1437,"") ->  | AW1487: =IF(E1437<>"",E1437,"") ->  | AY1487: =IF(F1437<>"",F1437,"") ->  | BA1487: =IF(H1437<>"",H1437,"") -> 
AU1551: =IF(D1501<>"",D1501,"") ->  | AW1551: =IF(E1501<>"",E1501,"") ->  | AY1551: =IF(F1501<>"",F1501,"") ->  | BA1551: =IF(H1501<>"",H1501,"") -> 
AU1591: =IF(D1541<>"",D1541,"") -> 
AU1592: =IF(D1542<>"",D1542,"") -> 
AU1593: =IF(D1543<>"",D1543,"") -> 
AU1594: =IF(D1544<>"",D1544,"") -> 

Sheet l7
AU2: =$AN$14 -> Ilustração 7.A - Salário médio no comércio varejista em R$
D3: =CONCATENATE("Selecionado por subconjunto: ",MID(E6,1,200)) -> Selecionado por subconjunto: > Todos
AU4: =$D$3 -> Selecionado por subconjunto: > Todos
D5: h | E5: 7
D6: g | E6: > Todos
K7: h | L7: 7 | AU7: =IF(ISERROR(#REF!),"",#REF!) -> 
D8: Rótulos de Linha | E8: Média de v | K8: y1 | L8: 2019-09-01
D9: 2018-12-01 | E9: 1538.177009
D10: 2019-01-01 | E10: 1540.183889 | K10: Rótulos de Linha | L10: Média de v | AM10: Número: | AN10: 7
D11: 2019-02-01 | E11: 1539.391061 | K11: Revendedora de Veículos | L11: 3149.565937 | AM11: Título: | AN11: Salário médio no comércio varejista em R$
D12: 2019-03-01 | E12: 1538.759297 | K12: Farmácias, Perfumarias e Higiene Pessoal | L12: 1830.878152
D13: 2019-04-01 | E13: 1537.181267 | K13: Calçados | L13: 1826.752165
D14: 2019-05-01 | E14: 1536.77353 | K14: Móveis e Decorações | L14: 1613.302715 | AM14: =CONCATENATE("Ilustração ",AN10,".A"," - ",AN11) -> Ilustração 7.A - Salário médio no comércio varejista em R$ | AN14: =IF(AN10=0,"",AM14) -> Ilustração 7.A - Salário médio no comércio varejista em R$
D15: 2019-06-01 | E15: 1536.452291 | K15: Lojas de Departamentos, Variedades e Duty Free | L15: 1577.843442 | AM15: =CONCATENATE("Ilustração ",AN10,".B"," - ",AN11) -> Ilustração 7.B - Salário médio no comércio varejista em R$ | AN15: =IF(AN10=0,"",AM15) -> Ilustração 7.B - Salário médio no comércio varejista em R$
D16: 2019-07-01 | E16: 1535.778558 | K16: Autopeças | L16: 1557.084363
D17: 2019-08-01 | E17: 1533.588985 | K17: > Todos | L17: 1531.222734
D18: 2019-09-01 | E18: 1531.222734 | K18: Vestuário | L18: 1474.03292
D19: 2019-10-01 | E19: 1528.918875 | K19: Materiais de Construção | L19: 1470.797118
D20: 2019-11-01 | E20: 1524.255574 | K20: Combustíveis, Lubrificantes e GLP | L20: 1459.531695
D21: 2019-12-01 | E21: 1521.728724 | K21: Óticas e Relojoarias | L21: 1443.541346
K22: Cine-Foto-Som-Informática | L22: 1433.075684
K23: Livrarias e Jornais | L23: 1385.840189
K24: Tecidos | L24: 1365.762671
K25: Produtos Alimentícios e Bebidas | L25: 1350.481396
AU51: =$AN$15 -> Ilustração 7.B - Salário médio no comércio varejista em R$
AU55: =IF(ISERROR(#REF!),"",#REF!) -> 
AU271: =IF(D221<>"",D221,"") ->  | AW271: =IF(E221<>"",E221,"") ->  | AY271: =IF(F221<>"",F221,"") ->  | BA271: =IF(H221<>"",H221,"") -> 
AU335: =IF(D285<>"",D285,"") ->  | AW335: =IF(E285<>"",E285,"") ->  | AY335: =IF(F285<>"",F285,"") ->  | BA335: =IF(H285<>"",H285,"") -> 
AU399: =IF(D349<>"",D349,"") ->  | AW399: =IF(E349<>"",E349,"") ->  | AY399: =IF(F349<>"",F349,"") ->  | BA399: =IF(H349<>"",H349,"") -> 
AU463: =IF(D413<>"",D413,"") ->  | AW463: =IF(E413<>"",E413,"") ->  | AY463: =IF(F413<>"",F413,"") ->  | BA463: =IF(H413<>"",H413,"") -> 
AU527: =IF(D477<>"",D477,"") ->  | AW527: =IF(E477<>"",E477,"") ->  | AY527: =IF(F477<>"",F477,"") ->  | BA527: =IF(H477<>"",H477,"") -> 
AU591: =IF(D541<>"",D541,"") ->  | AW591: =IF(E541<>"",E541,"") ->  | AY591: =IF(F541<>"",F541,"") ->  | BA591: =IF(H541<>"",H541,"") -> 
AU655: =IF(D605<>"",D605,"") ->  | AW655: =IF(E605<>"",E605,"") ->  | AY655: =IF(F605<>"",F605,"") ->  | BA655: =IF(H605<>"",H605,"") -> 
AU719: =IF(D669<>"",D669,"") ->  | AW719: =IF(E669<>"",E669,"") ->  | AY719: =IF(F669<>"",F669,"") ->  | BA719: =IF(H669<>"",H669,"") -> 
AU783: =IF(D733<>"",D733,"") ->  | AW783: =IF(E733<>"",E733,"") ->  | AY783: =IF(F733<>"",F733,"") ->  | BA783: =IF(H733<>"",H733,"") -> 
AU847: =IF(D797<>"",D797,"") ->  | AW847: =IF(E797<>"",E797,"") ->  | AY847: =IF(F797<>"",F797,"") ->  | BA847: =IF(H797<>"",H797,"") -> 
AU911: =IF(D861<>"",D861,"") ->  | AW911: =IF(E861<>"",E861,"") ->  | AY911: =IF(F861<>"",F861,"") ->  | BA911: =IF(H861<>"",H861,"") -> 
AU975: =IF(D925<>"",D925,"") ->  | AW975: =IF(E925<>"",E925,"") ->  | AY975: =IF(F925<>"",F925,"") ->  | BA975: =IF(H925<>"",H925,"") -> 
AU1039: =IF(D989<>"",D989,"") ->  | AW1039: =IF(E989<>"",E989,"") ->  | AY1039: =IF(F989<>"",F989,"") ->  | BA1039: =IF(H989<>"",H989,"") -> 
AU1103: =IF(D1053<>"",D1053,"") ->  | AW1103: =IF(E1053<>"",E1053,"") ->  | AY1103: =IF(F1053<>"",F1053,"") ->  | BA1103: =IF(H1053<>"",H1053,"") -> 
AU1167: =IF(D1117<>"",D1117,"") ->  | AW1167: =IF(E1117<>"",E1117,"") ->  | AY1167: =IF(F1117<>"",F1117,"") ->  | BA1167: =IF(H1117<>"",H1117,"") -> 
AU1231: =IF(D1181<>"",D1181,"") ->  | AW1231: =IF(E1181<>"",E1181,"") ->  | AY1231: =IF(F1181<>"",F1181,"") ->  | BA1231: =IF(H1181<>"",H1181,"") -> 
AU1295: =IF(D1245<>"",D1245,"") ->  | AW1295: =IF(E1245<>"",E1245,"") ->  | AY1295: =IF(F1245<>"",F1245,"") ->  | BA1295: =IF(H1245<>"",H1245,"") -> 
AU1359: =IF(D1309<>"",D1309,"") ->  | AW1359: =IF(E1309<>"",E1309,"") ->  | AY1359: =IF(F1309<>"",F1309,"") ->  | BA1359: =IF(H1309<>"",H1309,"") -> 
AU1423: =IF(D1373<>"",D1373,"") ->  | AW1423: =IF(E1373<>"",E1373,"") ->  | AY1423: =IF(F1373<>"",F1373,"") ->  | BA1423: =IF(H1373<>"",H1373,"") -> 
AU1487: =IF(D1437<>"",D1437,"") ->  | AW1487: =IF(E1437<>"",E1437,"") ->  | AY1487: =IF(F1437<>"",F1437,"") ->  | BA1487: =IF(H1437<>"",H1437,"") -> 
AU1551: =IF(D1501<>"",D1501,"") ->  | AW1551: =IF(E1501<>"",E1501,"") ->  | AY1551: =IF(F1501<>"",F1501,"") ->  | BA1551: =IF(H1501<>"",H1501,"") -> 
AU1591: =IF(D1541<>"",D1541,"") -> 
AU1592: =IF(D1542<>"",D1542,"") -> 
AU1593: =IF(D1543<>"",D1543,"") -> 
AU1594: =IF(D1544<>"",D1544,"") -> 

Sheet i8
AW2: =$AP$12 -> Ilustração 8.A - Sumário Executivo - Indicadores de emprego do comércio varejista ampliado
D3: =CONCATENATE("Selecionado por subconjunto: ",MID(E4,1,200)) -> Selecionado por subconjunto: 8 | M3: =CONCATENATE("Selecionado por subconjunto: ",MID(N6,3,200)) -> Selecionado por subconjunto: Saldo inicial de empregados
D4: h | E4: 8
M5: h | N5: 8 | AW5: Meses | AY5: Número Absoluto de Empregados | BC5: Salário Médio em R$
D6: Média de v | E6: Rótulos de Coluna | M6: g_1 | N6: 1. Saldo inicial de empregados | AX6: Saldo | BB6: Saldo
D7: Rótulos de Linha | E7: 1. Saldo inicial de empregados | F7: 2. Empregados admitidos | G7: 3. Empregados demitidos | H7: 4. Variação absoluta do número de empregados | I7: 5. Saldo final de empregados | J7: 6. Salário médio em R$ | AX7: Anterior | AY7: Admitidos | AZ7: Demitidos | BA7: Variação | BB7: Atual
D8: 2018-12-01 | E8: 212876 | F8: 6463 | G8: 4588 | H8: 1875 | I8: 214751 | J8: 1538.177009 | M8: Rótulos de Linha | N8: Média de v | AO8: Número: | AP8: 8 | AX8: (A) | AY8: (B) | AZ8: ( C) | BA8: (B-C) | BB8: (A+B-C)
D9: 2019-01-01 | E9: 214751 | F9: 5520 | G9: 8253 | H9: -2733 | I9: 212018 | J9: 1540.183889 | M9: 2018-12-01 | N9: 212876 | AO9: Título: | AP9: Sumário Executivo - Indicadores de emprego do comércio varejista ampliado | AW9: =D8 -> 2018-12-01 | AX9: =E8 -> 212876 | AY9: 6463 | AZ9: 4588 | BA9: 1875 | BB9: 214751 | BC9: 1538.177009
D10: 2019-02-01 | E10: 212018 | F10: 6168 | G10: 6610 | H10: -442 | I10: 211576 | J10: 1539.391061 | M10: 2019-01-01 | N10: 214751 | AW10: =D9 -> 2019-01-01 | AX10: =E9 -> 214751 | AY10: =F9 -> 5520 | AZ10: =G9 -> 8253 | BA10: =H9 -> -2733 | BB10: =I9 -> 212018 | BC10: =J9 -> 1540.183889
D11: 2019-03-01 | E11: 211576 | F11: 5079 | G11: 5983 | H11: -904 | I11: 210672 | J11: 1538.759297 | M11: 2019-02-01 | N11: 212018 | AW11: 2019-02-01 | AX11: 212018 | AY11: 6168 | AZ11: 6610 | BA11: -442 | BB11: 211576 | BC11: 1539.391061
D12: 2019-04-01 | E12: 210672 | F12: 6081 | G12: 5936 | H12: 145 | I12: 210817 | J12: 1537.181267 | M12: 2019-03-01 | N12: 211576 | AO12: =CONCATENATE("Ilustração ",AP8,".A"," - ",AP9) -> Ilustração 8.A - Sumário Executivo - Indicadores de emprego do comércio varejista ampliado | AP12: =IF(AP8=0,"",AO12) -> Ilustração 8.A - Sumário Executivo - Indicadores de emprego do comércio varejista ampliado | AW12: 2019-03-01 | AX12: 211576 | AY12: 5079 | AZ12: 5983 | BA12: -904 | BB12: 210672 | BC12: 1538.759297
D13: 2019-05-01 | E13: 210817 | F13: 6093 | G13: 6470 | H13: -377 | I13: 210440 | J13: 1536.77353 | M13: 2019-04-01 | N13: 210672 | AO13: =CONCATENATE("Ilustração ",AP8,".B"," - ",AP9) -> Ilustração 8.B - Sumário Executivo - Indicadores de emprego do comércio varejista ampliado | AP13: =IF(AP8=0,"",AO13) -> Ilustração 8.B - Sumário Executivo - Indicadores de emprego do comércio varejista ampliado | AW13: 2019-04-01 | AX13: 210672 | AY13: 6081 | AZ13: 5936 | BA13: 145 | BB13: 210817 | BC13: 1537.181267
D14: 2019-06-01 | E14: 210440 | F14: 5714 | G14: 6049 | H14: -335 | I14: 210105 | J14: 1536.452291 | M14: 2019-05-01 | N14: 210817 | AW14: 2019-05-01 | AX14: 210817 | AY14: 6093 | AZ14: 6470 | BA14: -377 | BB14: 210440 | BC14: 1536.77353
D15: 2019-07-01 | E15: 210105 | F15: 6385 | G15: 6471 | H15: -86 | I15: 210019 | J15: 1535.778558 | M15: 2019-06-01 | N15: 210440 | AW15: 2019-06-01 | AX15: 210440 | AY15: 5714 | AZ15: 6049 | BA15: -335 | BB15: 210105 | BC15: 1536.452291
D16: 2019-08-01 | E16: 210019 | F16: 6329 | G16: 5957 | H16: 372 | I16: 210391 | J16: 1533.588985 | M16: 2019-07-01 | N16: 210105 | AW16: 2019-07-01 | AX16: 210105 | AY16: 6385 | AZ16: 6471 | BA16: -86 | BB16: 210019 | BC16: 1535.778558
D17: 2019-09-01 | E17: 210391 | F17: 6366 | G17: 5612 | H17: 754 | I17: 211145 | J17: 1531.222734 | M17: 2019-08-01 | N17: 210019 | AW17: 2019-08-01 | AX17: 210019 | AY17: 6329 | AZ17: 5957 | BA17: 372 | BB17: 210391 | BC17: 1533.588985
D18: 2019-10-01 | E18: 211145 | F18: 6874 | G18: 6126 | H18: 748 | I18: 211893 | J18: 1528.918875 | M18: 2019-09-01 | N18: 210391 | AW18: 2019-09-01 | AX18: 210391 | AY18: 6366 | AZ18: 5612 | BA18: 754 | BB18: 211145 | BC18: 1531.222734
D19: 2019-11-01 | E19: 211893 | F19: 7437 | G19: 4900 | H19: 2537 | I19: 214430 | J19: 1524.255574 | M19: 2019-10-01 | N19: 211145 | AW19: 2019-10-01 | AX19: 211145 | AY19: 6874 | AZ19: 6126 | BA19: 748 | BB19: 211893 | BC19: 1528.918875
D20: 2019-12-01 | E20: 214430 | F20: 6260 | G20: 4899 | H20: 1361 | I20: 215791 | J20: 1521.728724 | M20: 2019-11-01 | N20: 211893 | AW20: 2019-11-01 | AX20: 211893 | AY20: 7437 | AZ20: 4900 | BA20: 2537 | BB20: 214430 | BC20: 1524.255574
M21: 2019-12-01 | N21: 214430 | AW21: 2019-12-01 | AX21: 214430 | AY21: 6260 | AZ21: 4899 | BA21: 1361 | BB21: 215791 | BC21: 1521.728724
AW49: =$AP$13 -> Ilustração 8.B - Sumário Executivo - Indicadores de emprego do comércio varejista ampliado
AW51: =$M$3 -> Selecionado por subconjunto: Saldo inicial de empregados
AW53: =IF(ISERROR(#REF!),"",#REF!) -> 
AW269: =IF(D219<>"",D219,"") ->  | AY269: =IF(E219<>"",E219,"") ->  | BA269: =IF(F219<>"",F219,"") ->  | BC269: =IF(H219<>"",H219,"") -> 
AW333: =IF(D283<>"",D283,"") ->  | AY333: =IF(E283<>"",E283,"") ->  | BA333: =IF(F283<>"",F283,"") ->  | BC333: =IF(H283<>"",H283,"") -> 
AW397: =IF(D347<>"",D347,"") ->  | AY397: =IF(E347<>"",E347,"") ->  | BA397: =IF(F347<>"",F347,"") ->  | BC397: =IF(H347<>"",H347,"") -> 
AW461: =IF(D411<>"",D411,"") ->  | AY461: =IF(E411<>"",E411,"") ->  | BA461: =IF(F411<>"",F411,"") ->  | BC461: =IF(H411<>"",H411,"") -> 
AW525: =IF(D475<>"",D475,"") ->  | AY525: =IF(E475<>"",E475,"") ->  | BA525: =IF(F475<>"",F475,"") ->  | BC525: =IF(H475<>"",H475,"") -> 
AW589: =IF(D539<>"",D539,"") ->  | AY589: =IF(E539<>"",E539,"") ->  | BA589: =IF(F539<>"",F539,"") ->  | BC589: =IF(H539<>"",H539,"") -> 
AW653: =IF(D603<>"",D603,"") ->  | AY653: =IF(E603<>"",E603,"") ->  | BA653: =IF(F603<>"",F603,"") ->  | BC653: =IF(H603<>"",H603,"") -> 
AW717: =IF(D667<>"",D667,"") ->  | AY717: =IF(E667<>"",E667,"") ->  | BA717: =IF(F667<>"",F667,"") ->  | BC717: =IF(H667<>"",H667,"") -> 
AW781: =IF(D731<>"",D731,"") ->  | AY781: =IF(E731<>"",E731,"") ->  | BA781: =IF(F731<>"",F731,"") ->  | BC781: =IF(H731<>"",H731,"") -> 
AW845: =IF(D795<>"",D795,"") ->  | AY845: =IF(E795<>"",E795,"") ->  | BA845: =IF(F795<>"",F795,"") ->  | BC845: =IF(H795<>"",H795,"") -> 
AW909: =IF(D859<>"",D859,"") ->  | AY909: =IF(E859<>"",E859,"") ->  | BA909: =IF(F859<>"",F859,"") ->  | BC909: =IF(H859<>"",H859,"") -> 
AW973: =IF(D923<>"",D923,"") ->  | AY973: =IF(E923<>"",E923,"") ->  | BA973: =IF(F923<>"",F923,"") ->  | BC973: =IF(H923<>"",H923,"") -> 
AW1037: =IF(D987<>"",D987,"") ->  | AY1037: =IF(E987<>"",E987,"") ->  | BA1037: =IF(F987<>"",F987,"") ->  | BC1037: =IF(H987<>"",H987,"") -> 
AW1101: =IF(D1051<>"",D1051,"") ->  | AY1101: =IF(E1051<>"",E1051,"") ->  | BA1101: =IF(F1051<>"",F1051,"") ->  | BC1101: =IF(H1051<>"",H1051,"") -> 
AW1165: =IF(D1115<>"",D1115,"") ->  | AY1165: =IF(E1115<>"",E1115,"") ->  | BA1165: =IF(F1115<>"",F1115,"") ->  | BC1165: =IF(H1115<>"",H1115,"") -> 
AW1229: =IF(D1179<>"",D1179,"") ->  | AY1229: =IF(E1179<>"",E1179,"") ->  | BA1229: =IF(F1179<>"",F1179,"") ->  | BC1229: =IF(H1179<>"",H1179,"") -> 
AW1293: =IF(D1243<>"",D1243,"") ->  | AY1293: =IF(E1243<>"",E1243,"") ->  | BA1293: =IF(F1243<>"",F1243,"") ->  | BC1293: =IF(H1243<>"",H1243,"") -> 
AW1357: =IF(D1307<>"",D1307,"") ->  | AY1357: =IF(E1307<>"",E1307,"") ->  | BA1357: =IF(F1307<>"",F1307,"") ->  | BC1357: =IF(H1307<>"",H1307,"") -> 
AW1421: =IF(D1371<>"",D1371,"") ->  | AY1421: =IF(E1371<>"",E1371,"") ->  | BA1421: =IF(F1371<>"",F1371,"") ->  | BC1421: =IF(H1371<>"",H1371,"") -> 
AW1485: =IF(D1435<>"",D1435,"") ->  | AY1485: =IF(E1435<>"",E1435,"") ->  | BA1485: =IF(F1435<>"",F1435,"") ->  | BC1485: =IF(H1435<>"",H1435,"") -> 
AW1549: =IF(D1499<>"",D1499,"") ->  | AY1549: =IF(E1499<>"",E1499,"") ->  | BA1549: =IF(F1499<>"",F1499,"") ->  | BC1549: =IF(H1499<>"",H1499,"") -> 
AW1589: =IF(D1539<>"",D1539,"") -> 
AW1590: =IF(D1540<>"",D1540,"") -> 
AW1591: =IF(D1541<>"",D1541,"") -> 
AW1592: =IF(D1542<>"",D1542,"") -> 

Sheet j4
E4: Emprego do Comércio Varejista Ampliado - Aspectos Metodológicos
